Workbook

Sheet FICHA TECNICA ESTANDAR
A1: FECHA DE REGISTRO: | F1: FICHA TÉCNICA ESTÁNDAR DE PROYECTOS DE INVERSIÓN PARA
A2: =NOW() -> 2020-02-24T10:37:06.640 | D2: PARQUES CULTURALES BICENTENARIO: CREACIÓN, MEJORAMIENTO O RECUPERACIÓN DE ESPACIOS PÚBLICOS CON SERVICIOS DE USO CULTURAL
G3: MONTOS ≤ 5 000 UIT
A10: 1. DATOS GENERALES
B14: Esta ficha técnica estándar se aplica sobre proyectos de inversión del Sector Cultura, y tiene como finalidad facilitar la formulación y evaluación de proyectos de inversión relacionados a espacios públicos con servicios de uso cultural. Dichos proyectos de inversión deben tener las siguientes características: - Área total del Parque : 1 – 4 hectáreas - Compuesto por cinco componentes: Área Ecológica, Explanada Cultural, Centro de Recursos de la Ciudadanía (CREC), Centro Cultural y Biblioteca Comunitaria. ¿Qué es un Parque Cultural Bicentenario? • Un Parque Cultural Bicentenario es un espacio público ubicado en lugares estratégicos de la ciudad con servicios que fomentan los derechos culturales, la memoria y la creatividad en las personas para construir una sociedad ética para el bien común. • Cuenta con áreas naturales abiertas, así como con infraestructura especializada para el desarrollo de exposiciones y actividades culturales que permitan la Integración social. • Sus espacios son convocantes y de carácter público que promueven la integración y participación de la población, teniendo como lugar medular el Centro de Recursos de la Ciudadanía. • Posee un modelo de gestión y oferta de actividades centradas en la identidad y los valores que dinamizan espacios de encuentro para una ciudadanía responsable preparada en resolver retos locales en equidad y bienestar.
B31: 1.1.1 SERVICIOS PÚBLICOS CON BRECHA IDENTIFICADA Y PRIORIZADA
B33: Tipo de Servicio | F33: Servicios culturales para la participación de la población en las industrias culturales y las artes | J33: Tipo de Brecha | N33: Cobertura
B36: 1.1.2 INDICADOR DE PRODUCTO ASOCIADO A LA BRECHA DE SERVICIOS
B38: Nombre del Indicador de brecha de acceso a servicios | H38: Unidad de medida | K38: Espacio geográfico | N38: Año | P38: Valor
B40: Porcentaje de distritos con más de 20,000 habitantes que no cuentan con infraestructura cultural pública para la participación de la población en las industrias culturales y las artes (% Distritos sin IPASC). | H40: Distritos
B42: Contribución del Cierre de Brecha (Valor)
B43: Nota: Se refiere a la capacidad de producción que aporta el proyecto (incremental). En aquellos casos en los que la unidad de medida del indicador de brecha del PMI no coincida con la unidad de medida de la brecha oferta – demanda del proyecto, se recomienda que la UF considere como contribución al cierre de brecha un valor expresado en la unidad de medida de la brecha del PMI, basado en los resultados del proyecto obtenidos en los documentos técnicos, como por ejemplo, metas físicas, o en el número de unidades productoras intervenidas, u otro de ser el caso.
B49: Naturaleza de intervención | F49: Objeto de intervención | L49: Localización
B51: Creación | F51: de servicios culturales para la participación de la población en las industrias culturales y las artes en el Parque Cultural Bicentenario | L51: del distrito de Chachapoyas, provincia de Chachapoyas, departamento de Amazonas
B53: =CONCATENATE(B51," ",F51," ",L51) -> Creación de servicios culturales para la participación de la población en las industrias culturales y las artes en el Parque Cultural Bicentenario del distrito de Chachapoyas, provincia de Chachapoyas, departamento de Amazonas
B59: Función | G59: Cultura y Deporte
B61: División funcional | G61: Cultura
B63: Grupo funcional | G63: Promoción y desarrollo cultural
B65: Sector responsable | G65: Cultura
B67: Tipología de proyecto | G67: Infraestructura Cultural Pública para la participación de la población en las industrias culturales y las artes
B73: OFICINA DE PROGRAMACIÓN MULTIANUAL DE INVERSIONES (OPMI)
B75: Nivel de gobierno :
B77: Entidad :
B79: Nombre de la OPMI: (Nombre de la Unidad Orgánica a la que pertenece la OPMI)
B81: Responsable de la OPMI:
B84: UNIDAD FORMULADORA (UF)
B86: Nivel de gobierno :
B88: Entidad :
B90: Nombre de la UF: (Nombre de la Unidad Orgánica a la que pertenece la UF)
B92: Responsable de la UF
B95: UNIDAD EJECUTORA DE INVERSIONES (UEI)
B97: Nivel de gobierno :
B99: Entidad :
B101: Nombre de la UEI: (Nombre de la Unidad Orgánica a la que pertenece la UEI)
B103: Responsable de la UEI
B106: UNIDAD EJECUTORA PRESUPUESTAL (UEP)
B108: Nombre de la UEP
A113: 2. IDENTIFICACIÓN
I116: ddd
B117: Paso 1. Identificar el área de estudio
B118: Área de estudio: Es el espacio geográfico que sirve de referencia para contextualizar la situación negativa. Comprende: i) el área donde se localiza la población afectada, ii) el área donde se ubica la UP a intervenir (cuando ésta existe) o donde podría construirse una nueva UP, iii) el área donde se ubican otras UP a las cuales puede acceder la población afectada.
B125: N° | C125: Departamento | E125: Provincia | G125: Distrito | I125: Localidad/Centro poblado | K125: Ubigeo
B126: 1
B127: Nota: Si el área de estudio del proyecto abarca más de una localización, se podrán añadir más localizaciones.
B129: Área de Influencia: Es el espacio geográfico donde se ubica la población afectada.
B134: N° | C134: Departamento | E134: Provincia | G134: Distrito | I134: Localidad/Centro poblado | K134: Ubigeo
B135: 1
B136: Nota: Si el área de estudio del proyecto abarca más de una localización, se podrán añadir más localizaciones.
B138: Presentar el croquis con la ubicación de los beneficiarios o los demandantes actuales y futuros y la localización de los elementos de la UP (en caso exista) o la UP a crear
N140: Leyenda
B152: Fuente de información:
B154: Paso 2. Trabajo de campo
B156: Visitar el área de estudio para recoger información de fuente primaria principalmente sobre las características geográficas, disponibilidad de recursos y condiciones de acceso, que te permitan luego diseñar el proyecto, así como identificar inversiones adicionales que permitan el funcionamiento de la UP.
B159: Principales características del uso del suelo de la zona de interés (localización potencial de la UP)
B160: Tipo de uso de suelo | E160: Área | H160: Descripción | K160: Fuente de información
B161: Zona de Recreación Pública
B167: Altitud | E167: Temperatura | I167: Humedad | L167: Precipitación
B170: Describir características de accesibilidad y dinámica económica
B173: Acceso a servicios públicos
B176: Servicio público | C176: ¿Existe acceso? SI/NO
B177: Agua
B178: Electricidad
B179: Internet
B181: Paso 3. Análisis de peligros
B183: Identifica y evalúa los peligros más relevantes en el territorio y que podrían afectar a la UP o al proyecto. Es necesario conocer las características de los peligros en cuanto a sus áreas de impacto, intensidad, período de retorno, probabilidad de ocurrencia, entre otros.
B186: Peligros | D186: ¿Existen antecedentes de ocurrencia en el área de estudio? | L186: ¿Existe información que indique futuros cambios en las características del peligro o los nuevos peligros?
D187: Sí / No | G187: Características (Intensidad, frecuencia, área de impacto, otros) | L187: Sí/No
B189: Inundaciones
B190: Movimientos en masa
B191: Lluvias intensas
B192: Helada
B193: Nevadas
B194: Friaje
B195: Sismos
B196: Sequías
B197: Vulcanismo
B198: Tsunamis
B199: Incendios forestales
B200: Erosión
B201: Vientos fuertes
B202: Incendios urbanos
B203: Radiación solar
B204: Otros
B210: Describir a la población afectada por la situación negativa de no recibir los servicios culturales a través de un espacio público que se busca resolver con el proyecto y su participación en las industrias culturales y artes. De este grupo de población se analizará los aspectos demográficos, económicos, sociales, culturales, además de los problemas y efectos que perciben. En caso no existiese el servicio, deben describirse las formas alternativas que utiliza la población afectada para obtenerlo; por ejemplo, a través de la visita a otras instituciones culturales vinculadas a la población.
B225: Datos de la Unidad Productora
B227: Nombre de la Unidad Productora | F227: Parque Cultural Bicentenario
B229: Código de la UP
B231: Para proyectos de inversión de naturaleza mejoramiento o recuperación se deberá realizar un levantamiento de información primaria respecto al estado actual de los activos existentes. Deberá enfocarse en entender las condiciones actuales bajo las que se viene prestando el bien o servicio, las causas que han determinado la situación actual, así como la forma en que se afecta la población usuaria.
B235: Activo Agregado | D235: Tipo de Factor productivo | F235: Activos estratégicos | I235: Cumple con los estándares de calidad del Sector | L235: Estado Situacional | O235: Acciones correctivas
I236: Norma técnica** | K236: Sí
B237: Área ecológica | D237: Infraestructura | F237: Área verde | S237: =MID(F237,12,50) -> 
D238: Infraestructura | F238: Sendero
D239: Infraestructura | F239: Baldosas podo táctiles
D240: Infraestructura | F240: Sardineles
D241: Infraestructura | F241: Sistema de riego
D242: Mobiliario | F242: Bancas
D243: Mobiliario | F243: Juegos infantiles e inclusivos
D244: Mobiliario | F244: Luminarias / faroles
B245: Explanada Cultural | D245: Infraestructura | F245: Anfiteatro
D246: Infraestructura | F246: Plataforma
D247: Infraestructura | F247: Servicios higiénicos
B248: Centro Cultural | D248: Infraestructura | F248: Auditorio
D249: Infraestructura | F249: Sala de Usos Múltiples
D250: Infraestructura | F250: Recepción
D251: Infraestructura | F251: Sala de Talleres
D252: Infraestructura | F252: Servicios higiénicos
D253: Equipo | F253: Equipo del centro cultural
D254: Mobiliario | F254: Mobiliario del centro cultural
B255: Biblioteca Comunitaria | D255: Infraestructura | F255: Sala de Lectura
D256: Infraestructura | F256: Ludoteca
D257: Infraestructura | F257: Sala Audiovisual
D258: Infraestructura | F258: Oficina de bibliotecólogo
D259: Infraestructura | F259: Depósito
D260: Infraestructura | F260: Recepción
D261: Infraestructura | F261: Servicios higiénicos
D262: Equipo | F262: Equipo para biblioteca
D263: Mobiliario | F263: Mobiliario para biblioteca
B264: Centro de recursos para la ciudadanía (CREC) | D264: Infraestructura | F264: Sala de exposición permanente
D265: Infraestructura | F265: Sala de exposición temporal
D266: Infraestructura | F266: Laboratorio creativo
D267: Infraestructura | F267: Huerto comunitario
D268: Infraestructura | F268: Ambiente de preparación y expendio de alimentos
D269: Infraestructura | F269: Depósito
D270: Infraestructura | F270: Ambiente administrativo
D271: Infraestructura | F271: Servicios higiénicos
D272: Equipo | F272: Equipo para CREC
D273: Mobiliario | F273: Mobiliario para CREC
B279: El diagnóstico de involucrados es un eje muy importante para el planteamiento del proyecto y su éxito. Identificar a otros involucrados clave, analizar cómo perciben el problema, cuáles son sus expectativas e intereses, la disposición o posibilidades de participar en cualquiera de las fases del ciclo del proyecto, posibilitará definir apropiadamente el problema, que el diseño del proyecto sea acorde con los intereses, entre otros aspectos. El análisis de otros involucrados se fundamentará en el empleo de mecanismos y/o instrumentos de recojo de información, tales como entrevistas, reuniones, talleres, entro otros (anexar las fuentes de verificación).
B288: Involucrado | F288: Situación negativa percibida | I288: Intereses o expectativas de involucrados | K288: Estrategias del proyecto de inversión | N288: Acuerdos y compromisos
B289: Ministerio de Cultura / Direcciones Desconcentradas de Cultura / Puntos de Cultura / Biblioteca Nacional del Perú
B290: Presidencia del Consejo de Ministros / Proyecto Especial Bicentenario de la Independencia del Perú
B291: Gobierno Regional
B292: Gobierno Local
B293: Ministerio de Comercio Exterior y Turismo
B294: Ministerio del Ambiente / SERNANP
B295: Ministerio de Vivienda Construcción y Saneamiento
B296: Ministerio del Interior
B297: Agrupaciones o asociaciones vinculadas a la cultura
B298: Empresas privadas que operen en la zona de influencia
B299: Población local vinculada a la actividad cultural y turística (artesanos, vendedores, guías, entre otros)
B300: Visitantes (turistas / excursionistas)
B301: Organizaciones Vecinales, Organizaciones sociales de base, Movimiento de cultura viva comunitaria, Colegio de Arquitectos, Red de gestores culturales, Patronatos, Voceros, personajes reconocidos del sector cultural
B307: PROBLEMA CENTRAL | E307: Población del departamento/provincia/distrito XXXX sin acceso a espacios públicos con servicios culturales para la promoción de la identidad y valores para la ciudadanía.
B309: Causas Directas | F309: Indicador* | I309: Unidad de Medida | K309: Valor | M309: Fuente de Información
B310: Insuficiente dotación de espacios públicos culturales.
B311: Insuficiente dotación de infraestructura y equipamiento de servicios culturales.
B312: Ineficiente gestión de servicios culturales para la promoción de identidad y valores.
B313: * En el caso de no existir un indicador, se deberá mostrar evidencias.
B315: Causas Indirectas | F315: Indicador* | I315: Unidad de Medida | K315: Valor | M315: Fuente de Información
B316: Insuficiente oferta de espacios públicos culturales con equipamiento para el intercambio y encuentro de la ciudadanía.
B317: Insuficiente oferta de infraestructura para el desarrollo de actividades culturales.
B318: Insuficiente oferta de infraestructura y equipamiento para el fomento de la lectura.
B319: * En el caso de no existir un indicador, se deberá mostrar evidencias.
B324: OBJETIVO CENTRAL | E324: Población del departamento/provincia/distrito XXXX con acceso a espacios públicos con servicios culturales para la promoción de la identidad y valores para la ciudadanía.
B326: N° | C326: MEDIOS FUNDAMENTALES | H326: ACTIVOS AGREGADOS | J326: ACCIONES
B327: 1 | C327: Adecuada oferta de espacios públicos culturales con equipamiento para el intercambio y encuentro de la ciudadanía. | H327: Área ecológica | J327: Construcción de Área verde
J328: Construcción de Sendero
J329: Adquisición de Baldosas podo táctiles
J330: Construcción de Sardineles
J331: Construcción de Sistema de riego
J332: Adquisición de Bancas
J333: Adquisición de Juegos infantiles e inclusivos
J334: Adquisición de Luminarias / faroles
H335: Explanada Cultural | J335: Construcción de Anfiteatro
J336: Construcción de Plataforma
J337: Construcción de Servicios higiénicos
B338: 2 | C338: Adecuada oferta de infraestructura para el desarrollo de actividades culturales. | H338: Centro Cultural | J338: Construcción de Auditorio
J339: Construcción de Sala de Usos Múltiples
J340: Construcción de Recepción
J341: Construcción de Sala de Talleres
J342: Construcción de Servicios higiénicos
J343: Adquisición de equipo para centro cultural
J344: Adquisición de mobiliario para centro cultural
B345: 3 | C345: Adecuada oferta infraestructura y equipamiento para el fomento de lectura. | H345: Biblioteca Comunitaria | J345: Construcción de Sala de Lectura
J346: Construcción de Ludoteca
J347: Construcción de Sala Audiovisual
J348: Construcción de Oficina de bibliotecólogo
J349: Construcción de Depósito
J350: Construcción de Recepción
J351: Construcción de Servicios higiénicos
J352: Adquisición de equipo para Biblioteca
J353: Adquisición de mobiliario para Biblioteca
B354: 4 | C354: Adecuadas salas de exhibición para promocionar la identidad y valores | H354: Centro de Recursos de la Ciudadania | J354: Construcción de Sala de exposición permanente
J355: Construcción de Sala de exposición temporal
J356: Construcción de Laboratorio creativo
J357: Construcción de Huerto comunitario
J358: Construcción de Ambiente de preparación y expendio de alimentos
J359: Construcción de Depósito
J360: Construcción de Área Administrativa
J361: Construcción de Servicios higiénicos
J362: Adquisición de equipo para CREC
J363: Adquisición de mobiliario para CREC
B364: 5 | C364: Adecuada capacidad de gestión de servicios culturales | H364: Modelo de Gestión | J364: Implementación de capacidad organizacional
B365: 6 | C365: Adecuadas acciones de sensibilización para la promoción de identidad y valores con participación de la población. | H365: Programa de sensibilización a la ciudadanía | J365: Implementación de capacidad humana
B368: N° | C368: FINES DIRECTOS | H368: FIN ULTIMO
B369: 1 | C369: Incremento de la participación de la ciudadanía en actividades de interacción social y cultural | H369: Mejora de la identidad cultural y valores en la población
C370: Incremento de hábito de lectura y del valor cultural de la ciudadanía
B378: La alternativa consiste en la construcción de infraestructura de Área Ecológica, Explanada Cultural, Centro de Recursos para la Ciudadanía (CREC), Centro Cultural y Biblioteca Comunitaria, además de la implementación de un modelo de gestión y programa de sensibilización a la ciudadanía.
A384: 3. FORMULACIÓN Y EVALUACIÓN
B389: FALSE
... 435 more rows

Sheet Parámetros de diseño
C3: Cuadro: Propuesta de áreas - Tres escalas de proyecto
C4: Proyecto | D4: Parque Cultural Bicentenario
C5: ESCALA | D5: S | G5: M | J5: L
D6: MÍNIMO | G6: MEDIA | J6: MÁXIMO
C7: Área total AREAS EXTERIORES (m2) | D7: =D12+D16 -> 12420 | E7: Índice(*) m2 / persona | F7: Aforo # personas | G7: =G12+G16 -> 24420 | H7: Índice(*) m2 / persona | I7: Aforo # personas | J7: =J12+J16 -> 36420 | K7: Índice(*) m2 / persona | L7: Aforo # personas
C8: Área total EDIFICIO CULTURAL (m2) | D8: =D26+D32+D42 -> 1195 | G8: =G26+G32+G42 -> 1355 | J8: =J26+J32+J42 -> 1505
B10: AREA ECOLOGICA | C10: Areas Verdes (área no techada) | D10: 10000 | E10: --- | F10: --- | G10: 20000 | H10: --- | I10: --- | J10: 30000 | K10: --- | L10: ---
C11: Senderos (área no techada) | D11: 2000 | E11: --- | F11: --- | G11: 4000 | H11: --- | I11: --- | J11: 6000 | K11: --- | L11: ---
C12: Area Ecológica subtotal (m2) | D12: =D10+D11 -> 12000 | F12: =SUM(F3:F10) -> 0 | G12: =G10+G11 -> 24000 | I12: =SUM(I3:I10) -> 0 | J12: =J10+J11 -> 36000 | L12: =SUM(L3:L10) -> 0
B13: EXPLANADA CULTURAL | C13: Explanada (área no techada) | D13: 1000 | E13: 1.5 | F13: =D13/E13 -> 666.6666667 | G13: 1000 | H13: 1.5 | I13: =G13/H13 -> 666.6666667 | J13: 1000 | K13: 1.5 | L13: =J13/K13 -> 666.6666667
C14: Anfiteatro | D14: 350 | E14: 1.5 | F14: =D14/E14 -> 233.3333333 | G14: 350 | H14: 1.5 | I14: =G14/H14 -> 233.3333333 | J14: 350 | K14: 1.5 | L14: =J14/K14 -> 233.3333333
C15: Servicios Higiénicos | D15: 70 | E15: --- | F15: --- | G15: 70 | H15: --- | I15: --- | J15: 70 | K15: --- | L15: ---
C16: Explanada Cultural subtotal (m2) | D16: =D14+D15 -> 420 | F16: =SUM(F7:F14) -> 900 | G16: =G14+G15 -> 420 | I16: =SUM(I7:I14) -> 900 | J16: =J14+J15 -> 420 | L16: =SUM(L7:L14) -> 900
B17: BIBLIOTECA COMUNITARIA | C17: Recepción | D17: 10 | E17: 9.3 | F17: =D17/E17 -> 1.075268817 | G17: 10 | H17: 9.3 | I17: =G17/H17 -> 1.075268817 | J17: 10 | K17: 9.3 | L17: =J17/K17 -> 1.075268817
C18: Sala de Lectura | D18: 120 | E18: 4.6 | F18: =D18/E18 -> 26.08695652 | G18: 140 | H18: 4.6 | I18: =G18/H18 -> 30.43478261 | J18: 160 | K18: 4.6 | L18: =J18/K18 -> 34.7826087
C19: Estantería de Libros | D19: 20 | E19: --- | F19: --- | G19: 20 | H19: --- | I19: --- | J19: 20 | K19: --- | L19: ---
C20: Depósito | D20: 15 | E20: --- | F20: --- | G20: 15 | H20: --- | I20: --- | J20: 15 | K20: --- | L20: ---
C21: Oficina del Bibliotecólogo | D21: 20 | E21: --- | F21: 1 | G21: 20 | H21: --- | I21: --- | J21: 20 | K21: --- | L21: 1
C22: Ludoteca (**) | D22: 60 | E22: 2.5 | F22: =D22/E22 -> 24 | G22: 80 | H22: 2.5 | I22: =G22/H22 -> 32 | J22: 100 | K22: 2.5 | L22: =J22/K22 -> 40
C23: Sala Audiovisual | D23: 20 | E23: 3 | F23: =D23/E23 -> 6.666666667 | G23: 30 | H23: 3 | I23: =G23/H23 -> 10 | J23: 40 | K23: 3 | L23: =J23/K23 -> 13.33333333
C24: Servicios Higiénicos | D24: 25 | E24: --- | F24: --- | G24: 25 | H24: --- | I24: --- | J24: 25 | K24: --- | L24: ---
C25: Servicios Higiénicos para niños | D25: 5 | E25: --- | F25: --- | G25: 5 | H25: --- | I25: --- | J25: 5 | K25: --- | L25: ---
C26: Biblioteca subtotal | D26: =SUM(D17:D25) -> 295 | F26: =SUM(F17:F25) -> 58.82889201 | G26: =SUM(G17:G25) -> 345 | I26: =SUM(I17:I23) -> 73.51005143 | J26: =SUM(J17:J25) -> 395 | L26: =SUM(L17:L23) -> 90.19121085
B27: CENTRO CULTURAL | C27: Sala de Usos Multiples | D27: 120 | E27: 1 | F27: =D27/E27 -> 120 | G27: 120 | H27: 1 | I27: =G27/H27 -> 120 | J27: 120 | K27: 1 | L27: =J27/K27 -> 120
C28: Auditorio (backstage, camerinos, controles) | D28: 210 | E28: 2 | F28: =D28/E28 -> 105 | G28: 240 | H28: 2 | I28: =G28/H28 -> 120 | J28: 260 | K28: 2 | L28: =J28/K28 -> 130
C29: Talleres | D29: 40 | E29: 1.5 | G29: 60 | H29: 1.5 | I29: =G29/H29 -> 40 | J29: 80 | K29: 1.5 | L29: =J29/K29 -> 53.33333333
C30: Recepción | D30: 60 | E30: 1.4 | F30: =D30/E30 -> 42.85714286 | G30: 80 | H30: 1.4 | I30: =G30/H30 -> 57.14285714 | J30: 100 | K30: 1.4 | L30: =J30/K30 -> 71.42857143
C31: Servicios Higiénicos | D31: 70 | E31: --- | F31: --- | G31: 70 | H31: --- | I31: --- | J31: 70 | K31: --- | L31: ---
C32: Centro Cultural subtotal (m2) | D32: =SUM(D27:D31) -> 500 | F32: =SUM(F27:F30) -> 267.8571429 | G32: =SUM(G27:G31) -> 570 | I32: =SUM(I27:I30) -> 337.1428571 | J32: =SUM(J27:J31) -> 630 | L32: =SUM(L27:L30) -> 374.7619048
B33: CENTRO DE RECURSOS PARA LA CIUDADANÍA (CREC) | C33: Sala de Exposición Permanente | D33: 90 | E33: 3 | F33: =D33/E33 -> 30 | G33: 90 | H33: 3 | I33: =G33/H33 -> 30 | J33: 90 | K33: 3 | L33: =J33/K33 -> 30
C34: Sala de Exposición Temporal - Recepción General | D34: 50 | E34: 3 | F34: =D34/E34 -> 16.66666667 | G34: 70 | H34: 3 | I34: =G34/H34 -> 23.33333333 | J34: 90 | K34: 3 | L34: =J34/K34 -> 30
C35: Laboratorio Creativo | D35: 50 | E35: 5 | F35: =D35/E35 -> 10 | G35: 50 | H35: 5 | I35: =G35/H35 -> 10 | J35: 50 | K35: 5 | L35: =D35/K35 -> 10
C36: Huerto Comunitario (área no techada) | D36: 50 | E36: --- | F36: --- | G36: 50 | H36: --- | I36: --- | J36: 50 | K36: --- | L36: ---
C37: Área Administrativa | D37: 30 | E37: 9.3 | F37: =D37/E37 -> 3.225806452 | G37: 30 | H37: 9.3 | I37: =G37/H37 -> 3.225806452 | J37: 30 | K37: 9.3 | L37: =D37/K37 -> 3.225806452
C38: Servicios Higiénicos | D38: 30 | E38: --- | F38: --- | G38: 30 | H38: --- | I38: --- | J38: 30 | K38: --- | L38: ---
C39: Depósito | D39: 20 | E39: --- | F39: --- | G39: 20 | H39: --- | I39: --- | J39: 20 | K39: --- | L39: ---
C40: Cafetería (comedor) | D40: 50 | E40: 1.5 | F40: =D40/E40 -> 33.33333333 | G40: 70 | H40: 1.5 | I40: =G40/H40 -> 46.66666667 | J40: 90 | K40: 1.5 | L40: =J40/K40 -> 60
C41: Cocina | D41: 30 | E41: 9.3 | F41: =D41/E41 -> 3.225806452 | G41: 30 | H41: 9.3 | I41: =G41/H41 -> 3.225806452 | J41: 30 | K41: 9.3 | L41: =D41/K41 -> 3.225806452
C42: CREC subtotal (m2) | D42: =SUM(D33:D41) -> 400 | F42: =SUM(F33:F41) -> 96.4516129 | G42: =SUM(G33:G41) -> 440 | I42: =SUM(I33:I41) -> 116.4516129 | J42: =SUM(J33:J41) -> 480 | L42: =SUM(L33:L41) -> 136.4516129
C43: EDIFICIO CULTURAL subtotal (m2) | D43: =D26+D32+D42 -> 1195 | F43: =F26+F32+F42 -> 423.1376478 | G43: =G26+G32+G42 -> 1355 | I43: =I26+I32+I42 -> 527.1045215 | J43: =J26+J32+J42 -> 1505 | L43: =L26+L32+L42 -> 601.4047285
C44: (*) Aforo calculado en base a la Norma A.130 Requisitos de Seguridad. Capítulo I Cálculo de carga de ocupantes. Reglamento Nacional de Edificaciones. Ver anexo.
C45: (**) El aforo de la ludoteca se ha calculado en base al índice del decreto 94/2009, por el que se regulan las ludotecas en Cataluña, España.

Sheet Costos de Inversión
B2: COSTOS DE INVERSIÓN POR ESCALA DE INTERVENCIÓN
B4: Acción sobre los activos | E4: Tipo de factor productivo | F4: Unidad Física | H4: Dimensión Física | M4: Costo total* Escala S | N4: Costo total* Escala M | O4: Costo total* Escala L
B5: Activo agregado | C5: Naturaleza de la acción | D5: Activos | F5: Unidad de medida | G5: Cantidad | H5: Unidad de medida | I5: Costo unitario | J5: Cantidad Escala S | K5: Cantidad Escala M | L5: Cantidad Escala L
B7: Componente 1: Adecuada oferta de espacios públicos culturales con equipamiento para el intercambio y encuentro de la ciudadanía. | O7: =SUM(O8:O20) -> 5429150
B8: 1.1. Área ecológica | C8: Construcción | D8: Área verde | E8: Infraestructura | F8: Número de estructuras físicas | G8: 1 | H8: m2 | I8: 100 | J8: 10000 | K8: 20000 | L8: 30000 | M8: =I8*J8 -> 1000000 | N8: =I8*K8 -> 2000000 | O8: =I8*L8 -> 3000000
C9: Construcción | D9: Sendero | E9: Infraestructura | F9: Número de estructuras físicas | G9: 1 | H9: m2 | I9: 90 | J9: 2000 | K9: 4000 | L9: 6000 | M9: 180000 | N9: 360000 | O9: 540000
C10: Construcción | D10: Baldosas podo táctiles | E10: Infraestructura | F10: Número de estructuras físicas | G10: 1 | H10: m2 | I10: 120 | J10: 200 | K10: 400 | L10: 600 | M10: 24000 | N10: 48000 | O10: 72000
C11: Construcción | D11: Sardineles | E11: Infraestructura | F11: Número de estructuras físicas | G11: 1 | H11: m | I11: 25 | J11: 2600 | K11: 5300 | L11: 8000 | M11: 65000 | N11: 132500 | O11: 200000
C12: Construcción | D12: Sistema de riego | E12: Infraestructura | F12: Número de estructuras físicas | G12: 1 | H12: m2 | I12: 8 | J12: 10000 | K12: 20000 | L12: 30000 | M12: 80000 | N12: 160000 | O12: 240000
C13: Adquisición | D13: Bancas | E13: Mobiliario | F13: Número de mobiliario | G13: 1 | I13: 750 | J13: 30 | K13: 50 | L13: 80 | M13: 22500 | N13: 37500 | O13: 60000
C14: Adquisición | D14: Juegos infantiles e inclusivos | E14: Mobiliario | F14: Número de mobiliario | G14: 1 | I14: 3500 | J14: 4 | K14: 6 | L14: 8 | M14: 14000 | N14: 21000 | O14: 28000
C15: Adquisición | D15: Luminarias / faroles | E15: Mobiliario | F15: Número de mobiliario | G15: 1 | I15: 500 | J15: 30 | K15: 50 | L15: 80 | M15: =I15*J15 -> 15000 | N15: =I15*K15 -> 25000 | O15: =I15*L15 -> 40000
D16: Otros activos no estratégicos (*)
B17: 1.2. Explanada Cultural | C17: Construcción | D17: Anfiteatro | E17: Infraestructura | F17: Número de estructuras físicas | G17: 1 | H17: Unidad | I17: 2000 | J17: 350 | K17: 350 | L17: 350 | M17: 700000 | N17: 700000 | O17: 700000
C18: Construcción | D18: Plataforma | E18: Infraestructura | F18: Número de estructuras físicas | G18: 1 | H18: m2 | I18: 350 | J18: 1000 | K18: 1000 | L18: 1000 | M18: 350000 | N18: 350000 | O18: 350000
C19: Construcción | D19: Servicios higiénicos | E19: Infraestructura | F19: Número de estructuras físicas | G19: 1 | H19: m2 | I19: 2845 | J19: 70 | K19: 70 | L19: 70 | M19: 199150 | N19: 199150 | O19: 199150
D20: Otros activos no estratégicos (*)
B21: Componente 2: Adecuada oferta de infraestructura para el desarrollo de actividades culturales. | O21: =SUM(O22:O29) -> 1792350
B22: 2.1. Centro Cultural | C22: Construcción | D22: Auditorio | E22: Infraestructura | F22: Número de estructuras físicas | G22: 1 | H22: m2 | I22: 2845 | J22: 210 | K22: 240 | L22: 260 | M22: =I22*J22 -> 597450 | N22: =I22*K22 -> 682800 | O22: =I22*L22 -> 739700
C23: Construcción | D23: Sala de Usos Múltiples | E23: Infraestructura | F23: Número de estructuras físicas | G23: 1 | H23: m2 | I23: 2845 | J23: 120 | K23: 120 | L23: 120 | M23: =I23*J23 -> 341400 | N23: =I23*K23 -> 341400 | O23: =I23*L23 -> 341400
C24: Construcción | D24: Recepción | E24: Infraestructura | F24: Número de estructuras físicas | G24: 1 | H24: m2 | I24: 2845 | J24: 60 | K24: 80 | L24: 100 | M24: =I24*J24 -> 170700 | N24: =I24*K24 -> 227600 | O24: =I24*L24 -> 284500
C25: Construcción | D25: Sala de Talleres | E25: Infraestructura | F25: Número de estructuras físicas | G25: 1 | H25: m2 | I25: 2845 | J25: 40 | K25: 60 | L25: 80 | M25: =I25*J25 -> 113800 | N25: =I25*K25 -> 170700 | O25: =I25*L25 -> 227600
C26: Construcción | D26: Servicios higiénicos | E26: Infraestructura | F26: Número de estructuras físicas | G26: 1 | H26: m2 | I26: 2845 | J26: 70 | K26: 70 | L26: 70 | M26: =I26*J26 -> 199150 | N26: =I26*K26 -> 199150 | O26: =I26*L26 -> 199150
C27: Adquisición | D27: Equipo para centro cultural | E27: Equipo (**) | F27: Número de equipo
C28: Adquisición | D28: Mobiliario para centro cultural | E28: Mobiliario (**) | F28: Número de mobiliario
D29: Otros activos no estratégicos (*)
B30: Componente 3: Adecuada oferta infraestructura y equipamiento para el fomento de lectura. | O30: =SUM(O31:O40) -> 1081100
B31: 3.1. Biblioteca | C31: Construcción | D31: Sala de Lectura | E31: Infraestructura | F31: Número de estructuras físicas | G31: 1 | H31: m2 | I31: 2845 | J31: 120 | K31: 140 | L31: 160 | M31: =I31*J31 -> 341400 | N31: =I31*K31 -> 398300 | O31: =I31*L31 -> 455200
C32: Construcción | D32: Ludoteca | E32: Infraestructura | F32: Número de estructuras físicas | G32: 1 | H32: m2 | I32: 2845 | J32: 60 | K32: 80 | L32: 100 | M32: 170700 | N32: 227600 | O32: 284500
C33: Construcción | D33: Sala Audiovisual | E33: Infraestructura | F33: Número de estructuras físicas | G33: 1 | H33: m2 | I33: 2845 | J33: 20 | K33: 30 | L33: 40 | M33: 56900 | N33: 85350 | O33: 113800
C34: Construcción | D34: Oficina de bibliotecólogo | E34: Infraestructura | F34: Número de estructuras físicas | G34: 1 | H34: m2 | I34: 2845 | J34: 20 | K34: 20 | L34: 20 | M34: 56900 | N34: 56900 | O34: 56900
C35: Construcción | D35: Depósito | E35: Infraestructura | F35: Número de estructuras físicas | G35: 1 | H35: m2 | I35: 2845 | J35: 15 | K35: 15 | L35: 15 | M35: 42675 | N35: 42675 | O35: 42675
C36: Construcción | D36: Recepción | E36: Infraestructura | F36: Número de estructuras físicas | G36: 1 | H36: m2 | I36: 2845 | J36: 20 | K36: 20 | L36: 20 | M36: 56900 | N36: 56900 | O36: 56900
C37: Construcción | D37: Servicios higiénicos | E37: Infraestructura | F37: Número de estructuras físicas | G37: 1 | H37: m2 | I37: 2845 | J37: 25 | K37: 25 | L37: 25 | M37: 71125 | N37: 71125 | O37: 71125
C38: Adquisición | D38: Equipo para la Biblioteca | E38: Equipo (**) | F38: Número de equipo
C39: Adquisición | D39: Mobiliario para la Biblioteca | E39: Mobiliario (**) | F39: Número de mobiliario
D40: Otros activos no estratégicos (*)
B41: Componente 4: Adecuadas salas de exhibición para promocionar la identidad y valores | O41: =SUM(O42:O52) -> 1646650
B42: 4.1. Centro de recursos de la ciudadanía (CREC) | C42: Construcción | D42: Sala de exposición permanente | E42: Infraestructura | F42: Número de estructuras físicas | G42: 1 | H42: m2 | I42: 2845 | J42: 50 | K42: 70 | L42: 90 | M42: =I42*J42 -> 142250 | N42: =I42*K42 -> 199150 | O42: =I42*L42 -> 256050
C43: Construcción | D43: Sala de exposición temporal | E43: Infraestructura | F43: Número de estructuras físicas | G43: 1 | H43: m2 | I43: 2845 | J43: 90 | K43: 90 | L43: 90 | M43: 256050 | N43: 256050 | O43: 256050
C44: Construcción | D44: Laboratorio creativo | E44: Infraestructura | F44: Número de estructuras físicas | G44: 1 | H44: m2 | I44: 2845 | J44: 50 | K44: 50 | L44: 50 | M44: 142250 | N44: 142250 | O44: 142250
C45: Construcción | D45: Huerto comunitario | E45: Infraestructura | F45: Número de estructuras físicas | G45: 1 | H45: m2 | I45: 500 | J45: 50 | K45: 50 | L45: 50 | M45: 25000 | N45: 25000 | O45: 25000
C46: Construcción | D46: Ambiente de preparación y expendio de alimentos | E46: Infraestructura | F46: Número de estructuras físicas | G46: 1 | H46: m2 | I46: 5690 | J46: 90 | K46: 110 | L46: 130 | M46: 512100 | N46: 625900 | O46: 739700
C47: Construcción | D47: Depósito | E47: Infraestructura | F47: Número de estructuras físicas | G47: 1 | H47: m2 | I47: 2845 | J47: 20 | K47: 20 | L47: 20 | M47: 56900 | N47: 56900 | O47: 56900
C48: Construcción | D48: Área Administrativa | E48: Infraestructura | F48: Número de estructuras físicas | G48: 1 | H48: m2 | I48: 2845 | J48: 30 | K48: 30 | L48: 30 | M48: 85350 | N48: 85350 | O48: 85350
C49: Construcción | D49: Servicios higiénicos | E49: Infraestructura | F49: Número de estructuras físicas | G49: 1 | H49: m2 | I49: 2845 | J49: 30 | K49: 30 | L49: 30 | M49: 85350 | N49: 85350 | O49: 85350
C50: Adquisición | D50: Equipo para CREC | E50: Equipo (**) | F50: Número de equipo
C51: Adquisición | D51: Mobiliario para CREC | E51: Mobiliario (**) | F51: Número de mobiliario
D52: Otros activos no estratégicos (*)
B53: Componente 5: Adecuada capacidad de gestión de servicios culturales | O53: =SUM(O54:O55) -> 140000
B54: 5.1. Modelo de gestión | C54: Implementación | D54: Capacidad Organizacional | E54: Intangible | F54: Número de Capacidad Organizacional | G54: 1 | H54: Taller | I54: 70000 | J54: 2 | K54: 2 | L54: 2 | M54: =I54*J54 -> 140000 | N54: =I54*K54 -> 140000 | O54: =I54*L54 -> 140000
D55: Otros activos no estratégicos (*)
B56: Componente 6: Adecuadas acciones de sensibilización para la promoción de identidad y valores con participación de la población. | O56: =SUM(O57:O58) -> 45000
B57: 6.1. Programa de sensibilización a la ciudadanía | C57: Implementación | D57: Capacidad Humana | E57: Intangible | F57: Número de Capacidad Humana | G57: 1 | H57: Conferencia | I57: 15000 | J57: 3 | K57: 3 | L57: 3 | M57: =I57*J57 -> 45000 | N57: =I57*K57 -> 45000 | O57: =I57*L57 -> 45000
D58: Otros activos no estratégicos (*)
B59: Sub Total de costos de inversión (***) | M59: =SUM(M7:M57) -> 6359000 | N59: =SUM(N7:N57) -> 8254600 | O59: =+O7+O21+O30+O41+O53+O56 -> 10134250
B62: (*) La estructura de costos deberá incluir “OTRAS ACCIONES DE INFRAESTRUCTURA, MOBILIARIO, EQUIPO, ETC” sobre “ACTIVOS NO ESTRATÉGICOS” de manera que la estimación del presupuesto incluya todos los costos necesarios para la finalización del proyecto de inversión. Entre los activos no estratégicos se encuentran, por ejemplo, tachos de basura, bebederos inclusivos, señalización vertical, archivo para material bibliográfico o audiovisual, estudio de impacto vial, guion museográfico, entre otros. El equipo formulador deberá desarrollar este costeo.
B63: (**) Los costos del equipo y mobiliario se determinarán de acuerdo al requerimiento de la escala de infraestructura.
B64: (***) Puede variar de acuerdo al Número de Hectáreas y Zona de localización.
B65: *Según corresponda
B66: Nota:
B67: Los costos presentados en este anexo son referenciales. Asimismo, el costo de inversión deberá ser sustentado a nivel de ingeniería conceptual y en función a la ubicación geográfica de los Parques Culturales Bicentenario.

Sheet Costo Operación y Mantenimiento
A3: COSTO DE OPERACIÓN Y MANTENIMIENTO
A6: A) COSTOS DE OPERACIÓN CON PROYECTO
A8: Requerimiento de insumos | B8: Unidad de medida | C8: Cantidad | D8: Cantidad por Año
D9: Año 1 | E9: Año 2 | F9: Año 3 | G9: Año 4 | H9: Año 5 | I9: Año 6 | J9: Año 7 | K9: Año 8 | L9: Año 9 | M9: Año 10
A10: Director General | B10: Director | C10: 1 | D10: 1 | E10: 1 | F10: 1 | G10: 1 | H10: 1 | I10: 1 | J10: 1 | K10: 1 | L10: 1 | M10: 1
A11: Coordinador Administrativo | B11: Coordinador | C11: 1 | D11: 1 | E11: 1 | F11: 1 | G11: 1 | H11: 1 | I11: 1 | J11: 1 | K11: 1 | L11: 1 | M11: 1
A12: Recepcionista | B12: Recepcionista | C12: 1 | D12: 1 | E12: 1 | F12: 1 | G12: 1 | H12: 1 | I12: 1 | J12: 1 | K12: 1 | L12: 1 | M12: 1
A13: Coordinador de Biblioteca | B13: Coordinador | C13: 1 | D13: 1 | E13: 1 | F13: 1 | G13: 1 | H13: 1 | I13: 1 | J13: 1 | K13: 1 | L13: 1 | M13: 1
A14: Especialista (Bibliotecólogo) | B14: Especialista | C14: 1 | D14: 1 | E14: 1 | F14: 1 | G14: 1 | H14: 1 | I14: 1 | J14: 1 | K14: 1 | L14: 1 | M14: 1
A15: Especialista Animación de Lectura | B15: Especialista | C15: 1 | D15: 1 | E15: 1 | F15: 1 | G15: 1 | H15: 1 | I15: 1 | J15: 1 | K15: 1 | L15: 1 | M15: 1
A16: Coordinador de Programación Cultural | B16: Coordinador | C16: 1 | D16: 1 | E16: 1 | F16: 1 | G16: 1 | H16: 1 | I16: 1 | J16: 1 | K16: 1 | L16: 1 | M16: 1
A17: Gestor Comunitario | B17: Gestor | C17: 1 | D17: 1 | E17: 1 | F17: 1 | G17: 1 | H17: 1 | I17: 1 | J17: 1 | K17: 1 | L17: 1 | M17: 1
A18: Pedagogos | B18: Pedagogo | C18: 1 | D18: 1 | E18: 1 | F18: 1 | G18: 1 | H18: 1 | I18: 1 | J18: 1 | K18: 1 | L18: 1 | M18: 1
A19: Personal de Apoyo | B19: Apoyo | C19: 1 | D19: 1 | E19: 1 | F19: 1 | G19: 1 | H19: 1 | I19: 1 | J19: 1 | K19: 1 | L19: 1 | M19: 1
A20: Coordinador de proyectos educativos | B20: Coordinador | C20: 1 | D20: 1 | E20: 1 | F20: 1 | G20: 1 | H20: 1 | I20: 1 | J20: 1 | K20: 1 | L20: 1 | M20: 1
A21: Jardinero | B21: Jardinero | C21: 1 | D21: 1 | E21: 1 | F21: 1 | G21: 1 | H21: 1 | I21: 1 | J21: 1 | K21: 1 | L21: 1 | M21: 1
A25: Requerimiento de insumos | B25: Unidad de medida | C25: Cantidad | D25: Costo unitario | E25: Costo total(*) | F25: Tiempo
F26: Año 1 | G26: Año 2 | H26: Año 3 | I26: Año 4 | J26: Año 5 | K26: Año 6 | L26: Año 7 | M26: Año 8 | N26: Año 9 | O26: Año 10
A27: Director General | B27: Director | C27: 1 | D27: 3500 | E27: =+D27*C27*12 -> 42000 | F27: 42000 | G27: =+F27 -> 42000 | H27: =+G27 -> 42000 | I27: 42000 | J27: 42000 | K27: 42000 | L27: 42000 | M27: 42000 | N27: 42000 | O27: 42000
A28: Coordinador Administrativo | B28: Coordinador | C28: 1 | D28: 2500 | E28: =+D28*C28*12 -> 30000 | F28: 30000 | G28: =+F28 -> 30000 | H28: 30000 | I28: 30000 | J28: 30000 | K28: 30000 | L28: 30000 | M28: 30000 | N28: 30000 | O28: 30000
A29: Recepcionista | B29: Recepcionista | C29: 1 | D29: 1500 | E29: 18000 | F29: 18000 | G29: 18000 | H29: 18000 | I29: 18000 | J29: 18000 | K29: 18000 | L29: 18000 | M29: 18000 | N29: 18000 | O29: 18000
A30: Coordinador de Biblioteca | B30: Coordinador | C30: 1 | D30: 2500 | E30: 30000 | F30: 30000 | G30: 30000 | H30: 30000 | I30: 30000 | J30: 30000 | K30: 30000 | L30: 30000 | M30: 30000 | N30: 30000 | O30: 30000
A31: Especialista (Bibliotecólogo) | B31: Especialista | C31: 1 | D31: 2000 | E31: 24000 | F31: 24000 | G31: 24000 | H31: 24000 | I31: 24000 | J31: 24000 | K31: 24000 | L31: 24000 | M31: 24000 | N31: 24000 | O31: 24000
A32: Especialista Animación de Lectura | B32: Especialista | C32: 1 | D32: 2000 | E32: 24000 | F32: 24000 | G32: 24000 | H32: 24000 | I32: 24000 | J32: 24000 | K32: 24000 | L32: 24000 | M32: 24000 | N32: 24000 | O32: 24000
A33: Coordinador de Programación Cultural | B33: Coordinador | C33: 1 | D33: 2500 | E33: 30000 | F33: 30000 | G33: 30000 | H33: 30000 | I33: 30000 | J33: 30000 | K33: 30000 | L33: 30000 | M33: 30000 | N33: 30000 | O33: 30000
A34: Gestor Cultural | B34: Gestor | C34: 1 | D34: 2000 | E34: 24000 | F34: 24000 | G34: 24000 | H34: 24000 | I34: 24000 | J34: 24000 | K34: 24000 | L34: 24000 | M34: 24000 | N34: 24000 | O34: 24000
A35: Pedagogos | B35: Pedagogo | C35: 1 | D35: 2000 | E35: 24000 | F35: 24000 | G35: 24000 | H35: 24000 | I35: 24000 | J35: 24000 | K35: 24000 | L35: 24000 | M35: 24000 | N35: 24000 | O35: 24000
A36: Personal de Apoyo | B36: Apoyo | C36: 1 | D36: 1500 | E36: 18000 | F36: 18000 | G36: 18000 | H36: 18000 | I36: 18000 | J36: 18000 | K36: 18000 | L36: 18000 | M36: 18000 | N36: 18000 | O36: 18000
A37: Coordinador de proyectos educativos | B37: Coordinador | C37: 1 | D37: 2500 | E37: 30000 | F37: 30000 | G37: 30000 | H37: 30000 | I37: 30000 | J37: 30000 | K37: 30000 | L37: 30000 | M37: 30000 | N37: 30000 | O37: 30000
A38: Jardinero | B38: Jardinero | C38: 1 | D38: 1500 | E38: 18000 | F38: 18000 | G38: 18000 | H38: 18000 | I38: 18000 | J38: 18000 | K38: 18000 | L38: 18000 | M38: 18000 | N38: 18000 | O38: 18000
A39: Material y útiles de escritorio | B39: Materiales | C39: 12 | D39: 1000 | E39: =+C39*D39 -> 12000 | F39: 12000 | G39: 12000 | H39: 12000 | I39: 12000 | J39: 12000 | K39: 12000 | L39: 12000 | M39: 12000 | N39: 12000 | O39: 12000
A40: Material de limpieza | B40: Materiales | C40: 12 | D40: 1200 | E40: =+C40*D40 -> 14400 | F40: 14400 | G40: 14400 | H40: 14400 | I40: 14400 | J40: 14400 | K40: 14400 | L40: 14400 | M40: 14400 | N40: 14400 | O40: 14400
A41: Servicio de agua | B41: meses | C41: 12 | D41: 250 | E41: =+C41*D41 -> 3000 | F41: 3000 | G41: 3000 | H41: 3000 | I41: 3000 | J41: 3000 | K41: 3000 | L41: 3000 | M41: 3000 | N41: 3000 | O41: 3000
A42: Servicio de energía | B42: meses | C42: 12 | D42: 600 | E42: =+C42*D42 -> 7200 | F42: 7200 | G42: 7200 | H42: 7200 | I42: 7200 | J42: 7200 | K42: 7200 | L42: 7200 | M42: 7200 | N42: 7200 | O42: 7200
A43: Servicio de internet | B43: meses | C43: 12 | D43: 250 | E43: =+C43*D43 -> 3000 | F43: 3000 | G43: 3000 | H43: 3000 | I43: 3000 | J43: 3000 | K43: 3000 | L43: 3000 | M43: 3000 | N43: 3000 | O43: 3000
A44: TOTAL COSTOS DE OPERACIÓN ANUAL DEL PI | E44: =SUM(E27:E43) -> 351600 | F44: =SUM(F27:F43) -> 351600 | G44: 351600 | H44: 351600 | I44: 351600 | J44: 351600 | K44: 351600 | L44: 351600 | M44: 351600 | N44: 351600 | O44: 351600
A45: (*) Costo RRHH Año1 = (Cantidad x Costo unitario x 12) / Costo Insumos Año1 =(Cantidad x Costo Unitario)
A48: B) COSTOS DE MANTENIMIENTO CON PROYECTO
A49: Requerimiento de insumos | B49: Unidad de medida | C49: Cantidad | D49: Costo unitario | E49: Costo total | F49: Tiempo
F50: Año 1 | G50: Año 2 | H50: Año 3 | I50: Año 4 | J50: Año 5 | K50: Año 6 | L50: Año 7 | M50: Año 8 | N50: Año 9 | O50: Año 10
A51: Pintado de infraestructura existente y áreas interior y exteriores | B51: Anual | C51: 1 | D51: 2000 | E51: =+D51*C51 -> 2000 | F51: =+E51 -> 2000 | G51: =+F51 -> 2000 | H51: 2000 | I51: 2000 | J51: 2000 | K51: 2000 | L51: 2000 | M51: 2000 | N51: 2000 | O51: 2000
A52: Reparación de puertas, pisos, muros y ventanas | B52: Anual | C52: 1 | D52: 1200 | E52: =+D52*C52 -> 1200 | F52: =+E52 -> 1200 | G52: 1200 | H52: 1200 | I52: 1200 | J52: 1200 | K52: 1200 | L52: 1200 | M52: 1200 | N52: 1200 | O52: 1200
A53: Reparación de Cobertura | B53: Anual | C53: 1 | D53: 2000 | E53: 2000 | F53: 2000 | G53: 2000 | H53: 2000 | I53: 2000 | J53: 2000 | K53: 2000 | L53: 2000 | M53: 2000 | N53: 2000 | O53: 2000
A54: Reparación de instalaciones sanitarias | B54: Anual | C54: 1 | D54: 1000 | E54: 1000 | F54: 1000 | G54: 1000 | H54: 1000 | I54: 1000 | J54: 1000 | K54: 1000 | L54: 1000 | M54: 1000 | N54: 1000 | O54: 1000
A55: Reparación de sistema eléctrico | B55: Anual | C55: 1 | D55: 600 | E55: 600 | F55: 600 | G55: 600 | H55: 600 | I55: 600 | J55: 600 | K55: 600 | L55: 600 | M55: 600 | N55: 600 | O55: 600
A56: Mantenimiento de equipos y mobiliario | B56: Anual | C56: 1 | D56: 1000 | E56: 1000 | F56: 1000 | G56: 1000 | H56: 1000 | I56: 1000 | J56: 1000 | K56: 1000 | L56: 1000 | M56: 1000 | N56: 1000 | O56: 1000
A57: Mantenimiento de áreas ecológicas | B57: Anual | C57: 1 | D57: 6000 | E57: 6000 | F57: 6000 | G57: 6000 | H57: 6000 | I57: 6000 | J57: 6000 | K57: 6000 | L57: 6000 | M57: 6000 | N57: 6000 | O57: 6000
A58: TOTAL COSTOS DE MANTENIMIENTO ANUAL DEL PIP | D58: =SUM(D51:D57) -> 13800 | E58: =SUM(E51:E57) -> 13800 | F58: =SUM(F51:F57) -> 13800 | G58: 13800 | H58: 13800 | I58: 13800 | J58: 13800 | K58: 13800 | L58: 13800 | M58: 13800 | N58: 13800 | O58: 13800

Sheet Costo a Precios Sociales
B1: EJEMPLO EN EL CASO DE LA DIMENSIÓN FÍSICA L (4 hectáreas)
B3: COSTOS DE INVERSIÓN A PRECIOS SOCIALES
B5: Acciones / Rubros | C5: Costo total a precios de mercado (soles con IGV) | D5: Incidencia | E5: Factor de corrección | F5: Costo a precios sociales (soles)
B8: Componente 1: Adecuada oferta de espacios públicos culturales con equipamiento para el intercambio y encuentro de la ciudadanía. | C8: =+C9+C16+C23+C30+C37+C44+C51+C58+C65+C72+C79 -> 5429150 | F8: =+F9+F16+F23+F30+F37+F44+F51+F58+F65+F72+F79 -> 4121343.81
B9: Construcción de Área verde | C9: =+'Costos de Inversión'!O8 -> 3000000 | F9: =SUM(F10:F15) -> 2272200
B10: Bienes Transables | C10: =+$C$9*D10 -> 60000 | D10: 0.02 | E10: 1.08 | F10: =+($C$9*D10)*E10 -> 64800
B11: Bienes no transables | C11: =+$C$9*D11 -> 1800000 | D11: 0.6 | E11: 0.847 | F11: =+($C$9*D11)*E11 -> 1524600
B12: Mano de obra calificada | C12: 300000 | D12: 0.1 | E12: 0.8 | F12: =+($C$9*D12)*E12 -> 240000
B13: Mano de obra no calificada | C13: 540000 | D13: 0.18 | E13: 0.62 | F13: =+($C$9*D13)*E13 -> 334800
B14: Mano de obra semicalificada | C14: 150000 | D14: 0.05 | E14: 0.65 | F14: =+($C$9*D14)*E14 -> 97500
B15: Combustibles (Diesel) | C15: 150000 | D15: 0.05 | E15: 0.07 | F15: =+($C$9*D15)*E15 -> 10500
B16: Construcción de Sendero | C16: =+'Costos de Inversión'!O9 -> 540000 | F16: =SUM(F17:F22) -> 408996
B17: Bienes Transables | C17: =+$C$16*D17 -> 10800 | D17: 0.02 | E17: 1.08 | F17: =+($C$16*D17)*E17 -> 11664
B18: Bienes no transables | C18: =+$C$16*D18 -> 324000 | D18: 0.6 | E18: 0.847 | F18: =+($C$16*D18)*E18 -> 274428
B19: Mano de obra calificada | C19: 54000 | D19: 0.1 | E19: 0.8 | F19: 43200
B20: Mano de obra no calificada | C20: 97200 | D20: 0.18 | E20: 0.62 | F20: 60264
B21: Mano de obra semicalificada | C21: 27000 | D21: 0.05 | E21: 0.65 | F21: 17550
B22: Combustibles (Diesel) | C22: 27000 | D22: 0.05 | E22: 0.07 | F22: 1890
B23: Construcción de Baldosas podo táctiles | C23: =+'Costos de Inversión'!O10 -> 72000 | F23: =SUM(F24:F29) -> 54532.8
B24: Bienes Transables | C24: =+$C$23*D24 -> 1440 | D24: 0.02 | E24: 1.08 | F24: =+($C$23*D24)*E24 -> 1555.2
B25: Bienes no transables | C25: =+$C$23*D25 -> 43200 | D25: 0.6 | E25: 0.847 | F25: =+($C$23*D25)*E25 -> 36590.4
B26: Mano de obra calificada | C26: 7200 | D26: 0.1 | E26: 0.8 | F26: 5760
B27: Mano de obra no calificada | C27: 12960 | D27: 0.18 | E27: 0.62 | F27: 8035.2
B28: Mano de obra semicalificada | C28: 3600 | D28: 0.05 | E28: 0.65 | F28: 2340
B29: Combustibles (Diesel) | C29: 3600 | D29: 0.05 | E29: 0.07 | F29: 252
B30: Construcción de Sardineles | C30: =+'Costos de Inversión'!O11 -> 200000 | F30: =SUM(F31:F36) -> 151480
B31: Bienes Transables | C31: =+$C$30*D31 -> 4000 | D31: 0.02 | E31: 1.08 | F31: =+($C$30*D31)*E31 -> 4320
B32: Bienes no transables | C32: =+$C$30*D32 -> 120000 | D32: 0.6 | E32: 0.847 | F32: =+($C$30*D32)*E32 -> 101640
B33: Mano de obra calificada | C33: 20000 | D33: 0.1 | E33: 0.8 | F33: 16000
B34: Mano de obra no calificada | C34: 36000 | D34: 0.18 | E34: 0.62 | F34: 22320
B35: Mano de obra semicalificada | C35: 10000 | D35: 0.05 | E35: 0.65 | F35: 6500
B36: Combustibles (Diesel) | C36: 10000 | D36: 0.05 | E36: 0.07 | F36: 700
B37: Construcción de Sistema de riego | C37: =+'Costos de Inversión'!O12 -> 240000 | F37: =SUM(F38:F43) -> 181776
B38: Bienes Transables | C38: =+$C$37*D38 -> 4800 | D38: 0.02 | E38: 1.08 | F38: =+($C$37*D38)*E38 -> 5184
B39: Bienes no transables | C39: =+$C$37*D39 -> 144000 | D39: 0.6 | E39: 0.847 | F39: =+($C$37*D39)*E39 -> 121968
B40: Mano de obra calificada | C40: 24000 | D40: 0.1 | E40: 0.8 | F40: 19200
B41: Mano de obra no calificada | C41: 43200 | D41: 0.18 | E41: 0.62 | F41: 26784
B42: Mano de obra semicalificada | C42: 12000 | D42: 0.05 | E42: 0.65 | F42: 7800
B43: Combustibles (Diesel) | C43: 12000 | D43: 0.05 | E43: 0.07 | F43: 840
B44: Adquisición de Bancas | C44: =+'Costos de Inversión'!O13 -> 60000 | F44: =SUM(F45:F50) -> 49806
B45: Bienes Transables | C45: =+$C$44*D45 -> 0 | D45: 0 | E45: 1.08 | F45: =+($C$44*D45)*E45 -> 0
B46: Bienes no transables | C46: =+$C$44*D46 -> 48000 | D46: 0.8 | E46: 0.847 | F46: =+($C$44*D46)*E46 -> 40656
B47: Mano de obra calificada | C47: 9000 | D47: 0.15 | E47: 0.8 | F47: 7200
B48: Mano de obra no calificada | C48: 0 | D48: 0 | E48: 0.62 | F48: 0
B49: Mano de obra semicalificada | C49: 3000 | D49: 0.05 | E49: 0.65 | F49: 1950
B50: Combustibles (Diesel) | C50: 0 | D50: 0 | E50: 0.07 | F50: 0
B51: Adquisición de Juegos infantiles e inclusivos | C51: =+'Costos de Inversión'!O14 -> 28000 | F51: =SUM(F52:F57) -> 23242.8
B52: Bienes Transables | C52: =+$C$51*D52 -> 0 | D52: 0 | E52: 1.08 | F52: =+($C$51*D52)*E52 -> 0
B53: Bienes no transables | C53: =+$C$51*D53 -> 22400 | D53: 0.8 | E53: 0.847 | F53: =+($C$51*D53)*E53 -> 18972.8
B54: Mano de obra calificada | C54: 4200 | D54: 0.15 | E54: 0.8 | F54: 3360
B55: Mano de obra no calificada | C55: 0 | D55: 0 | E55: 0.62 | F55: 0
B56: Mano de obra semicalificada | C56: 1400 | D56: 0.05 | E56: 0.65 | F56: 910
B57: Combustibles (Diesel) | C57: 0 | D57: 0 | E57: 0.07 | F57: 0
B58: Adquisición de Luminarias / faroles | C58: =+'Costos de Inversión'!O15 -> 40000 | F58: =SUM(F59:F64) -> 33204
B59: Bienes Transables | C59: =+$C$58*D59 -> 0 | D59: 0 | E59: 1.08 | F59: =+($C$58*D59)*E59 -> 0
B60: Bienes no transables | C60: =+$C$58*D60 -> 32000 | D60: 0.8 | E60: 0.847 | F60: =+($C$58*D60)*E60 -> 27104
B61: Mano de obra calificada | C61: 6000 | D61: 0.15 | E61: 0.8 | F61: 4800
B62: Mano de obra no calificada | C62: 0 | D62: 0 | E62: 0.62 | F62: 0
B63: Mano de obra semicalificada | C63: 2000 | D63: 0.05 | E63: 0.65 | F63: 1300
B64: Combustibles (Diesel) | C64: 0 | D64: 0 | E64: 0.07 | F64: 0
B65: Construcción de Anfiteatro | C65: =+'Costos de Inversión'!O17 -> 700000 | F65: =SUM(F66:F71) -> 530180
B66: Bienes Transables | C66: =+$C$65*D66 -> 14000 | D66: 0.02 | E66: 1.08 | F66: =+($C$65*D66)*E66 -> 15120
B67: Bienes no transables | C67: =+$C$65*D67 -> 420000 | D67: 0.6 | E67: 0.847 | F67: =+($C$65*D67)*E67 -> 355740
B68: Mano de obra calificada | C68: 70000 | D68: 0.1 | E68: 0.8 | F68: 56000
B69: Mano de obra no calificada | C69: 126000 | D69: 0.18 | E69: 0.62 | F69: 78120
B70: Mano de obra semicalificada | C70: 35000 | D70: 0.05 | E70: 0.65 | F70: 22750
B71: Combustibles (Diesel) | C71: 35000 | D71: 0.05 | E71: 0.07 | F71: 2450
B72: Construcción de Plataforma | C72: =+'Costos de Inversión'!O18 -> 350000 | F72: =SUM(F73:F78) -> 265090
B73: Bienes Transables | C73: =+$C$72*D73 -> 7000 | D73: 0.02 | E73: 1.08 | F73: =+($C$72*D73)*E73 -> 7560
B74: Bienes no transables | C74: =+$C$72*D74 -> 210000 | D74: 0.6 | E74: 0.847 | F74: =+($C$72*D74)*E74 -> 177870
B75: Mano de obra calificada | C75: 35000 | D75: 0.1 | E75: 0.8 | F75: 28000
B76: Mano de obra no calificada | C76: 63000 | D76: 0.18 | E76: 0.62 | F76: 39060
B77: Mano de obra semicalificada | C77: 17500 | D77: 0.05 | E77: 0.65 | F77: 11375
B78: Combustibles (Diesel) | C78: 17500 | D78: 0.05 | E78: 0.07 | F78: 1225
B79: Construcción de Servicios higiénicos | C79: =+'Costos de Inversión'!O19 -> 199150 | F79: =SUM(F80:F85) -> 150836.21
B80: Bienes Transables | C80: =+$C$79*D80 -> 3983 | D80: 0.02 | E80: 1.08 | F80: =+($C$79*D80)*E80 -> 4301.64
B81: Bienes no transables | C81: =+$C$79*D81 -> 119490 | D81: 0.6 | E81: 0.847 | F81: =+($C$79*D81)*E81 -> 101208.03
B82: Mano de obra calificada | C82: 19915 | D82: 0.1 | E82: 0.8 | F82: 15932
B83: Mano de obra no calificada | C83: 35847 | D83: 0.18 | E83: 0.62 | F83: 22225.14
B84: Mano de obra semicalificada | C84: 9957.5 | D84: 0.05 | E84: 0.65 | F84: 6472.375
B85: Combustibles (Diesel) | C85: 9957.5 | D85: 0.05 | E85: 0.07 | F85: 697.025
B86: Componente 2: Adecuada oferta de infraestructura para el desarrollo de actividades culturales. | C86: =+C87+C94+C101+C108+C115+C122+C129 -> 1792350 | F86: =+F87+F94+F101+F108+F115+F122+F129 -> 1357525.89
B87: Construcción de Auditorio | C87: =+'Costos de Inversión'!O22 -> 739700 | F87: =SUM(F88:F93) -> 560248.78
B88: Bienes Transables | C88: =+$C$87*D88 -> 14794 | D88: 0.02 | E88: 1.08 | F88: =+($C$87*D88)*E88 -> 15977.52
B89: Bienes no transables | C89: =+$C$87*D89 -> 443820 | D89: 0.6 | E89: 0.847 | F89: =+($C$87*D89)*E89 -> 375915.54
B90: Mano de obra calificada | C90: 73970 | D90: 0.1 | E90: 0.8 | F90: 59176
B91: Mano de obra no calificada | C91: 133146 | D91: 0.18 | E91: 0.62 | F91: 82550.52
B92: Mano de obra semicalificada | C92: 36985 | D92: 0.05 | E92: 0.65 | F92: 24040.25
B93: Combustibles (Diesel) | C93: 36985 | D93: 0.05 | E93: 0.07 | F93: 2588.95
B94: Construcción de Sala de Usos Múltiples | C94: =+'Costos de Inversión'!O23 -> 341400 | F94: =SUM(F95:F100) -> 258576.36
B95: Bienes Transables | C95: =+$C$94*D95 -> 6828 | D95: 0.02 | E95: 1.08 | F95: =+($C$94*D95)*E95 -> 7374.24
B96: Bienes no transables | C96: =+$C$94*D96 -> 204840 | D96: 0.6 | E96: 0.847 | F96: =+($C$94*D96)*E96 -> 173499.48
B97: Mano de obra calificada | C97: 34140 | D97: 0.1 | E97: 0.8 | F97: 27312
B98: Mano de obra no calificada | C98: 61452 | D98: 0.18 | E98: 0.62 | F98: 38100.24
B99: Mano de obra semicalificada | C99: 17070 | D99: 0.05 | E99: 0.65 | F99: 11095.5
B100: Combustibles (Diesel) | C100: 17070 | D100: 0.05 | E100: 0.07 | F100: 1194.9
B101: Construcción de Recepción | C101: =+'Costos de Inversión'!O24 -> 284500 | F101: =SUM(F102:F107) -> 215480.3
B102: Bienes Transables | C102: =+$C$101*D102 -> 5690 | D102: 0.02 | E102: 1.08 | F102: =+($C$101*D102)*E102 -> 6145.2
B103: Bienes no transables | C103: =+$C$101*D103 -> 170700 | D103: 0.6 | E103: 0.847 | F103: =+($C$101*D103)*E103 -> 144582.9
B104: Mano de obra calificada | C104: 28450 | D104: 0.1 | E104: 0.8 | F104: 22760
B105: Mano de obra no calificada | C105: 51210 | D105: 0.18 | E105: 0.62 | F105: 31750.2
B106: Mano de obra semicalificada | C106: 14225 | D106: 0.05 | E106: 0.65 | F106: 9246.25
B107: Combustibles (Diesel) | C107: 14225 | D107: 0.05 | E107: 0.07 | F107: 995.75
B108: Construcción de Sala de Talleres | C108: =+'Costos de Inversión'!O25 -> 227600 | F108: =SUM(F109:F114) -> 172384.24
B109: Bienes Transables | C109: =+$C$108*D109 -> 4552 | D109: 0.02 | E109: 1.08 | F109: =+($C$108*D109)*E109 -> 4916.16
B110: Bienes no transables | C110: =+$C$108*D110 -> 136560 | D110: 0.6 | E110: 0.847 | F110: =+($C$108*D110)*E110 -> 115666.32
B111: Mano de obra calificada | C111: 22760 | D111: 0.1 | E111: 0.8 | F111: 18208
B112: Mano de obra no calificada | C112: 40968 | D112: 0.18 | E112: 0.62 | F112: 25400.16
B113: Mano de obra semicalificada | C113: 11380 | D113: 0.05 | E113: 0.65 | F113: 7397
B114: Combustibles (Diesel) | C114: 11380 | D114: 0.05 | E114: 0.07 | F114: 796.6
B115: Construcción de Servicios Higiénicos | C115: =+'Costos de Inversión'!O26 -> 199150 | F115: =SUM(F116:F121) -> 150836.21
B116: Bienes Transables | C116: =+$C$115*D116 -> 3983 | D116: 0.02 | E116: 1.08 | F116: =+($C$115*D116)*E116 -> 4301.64
B117: Bienes no transables | C117: =+$C$115*D117 -> 119490 | D117: 0.6 | E117: 0.847 | F117: =+($C$115*D117)*E117 -> 101208.03
B118: Mano de obra calificada | C118: 19915 | D118: 0.1 | E118: 0.8 | F118: 15932
B119: Mano de obra no calificada | C119: 35847 | D119: 0.18 | E119: 0.62 | F119: 22225.14
B120: Mano de obra semicalificada | C120: 9957.5 | D120: 0.05 | E120: 0.65 | F120: 6472.375
B121: Combustibles (Diesel) | C121: 9957.5 | D121: 0.05 | E121: 0.07 | F121: 697.025
B122: Adquisición de Equipo para centro cultural | C122: =+'Costos de Inversión'!O27 -> 0 | F122: =SUM(F123:F128) -> 0
B123: Bienes Transables | C123: =+$C$122*D123 -> 0 | D123: 0 | E123: 1.08 | F123: =+($C$122*D123)*E123 -> 0
B124: Bienes no transables | C124: =+$C$122*D124 -> 0 | D124: 0.9 | E124: 0.847 | F124: =+($C$122*D124)*E124 -> 0
B125: Mano de obra calificada | C125: 0 | D125: 0.05 | E125: 0.8 | F125: 0
B126: Mano de obra no calificada | C126: 0 | D126: 0 | E126: 0.62 | F126: 0
B127: Mano de obra semicalificada | C127: 0 | D127: 0.05 | E127: 0.65 | F127: 0
B128: Combustibles (Diesel) | C128: 0 | D128: 0 | E128: 0.07 | F128: 0
B129: Adquisición de Mobiliario para centro cultural | C129: =+'Costos de Inversión'!O28 -> 0 | F129: =SUM(F130:F135) -> 0
B130: Bienes Transables | C130: =+$C$129*D130 -> 0 | D130: 0 | E130: 1.08 | F130: =+($C$129*D130)*E130 -> 0
B131: Bienes no transables | C131: =+$C$129*D131 -> 0 | D131: 0.8 | E131: 0.847 | F131: =+($C$129*D131)*E131 -> 0
B132: Mano de obra calificada | C132: 0 | D132: 0.15 | E132: 0.8 | F132: 0
B133: Mano de obra no calificada | C133: 0 | D133: 0 | E133: 0.62 | F133: 0
B134: Mano de obra semicalificada | C134: 0 | D134: 0.05 | E134: 0.65 | F134: 0
B135: Combustibles (Diesel) | C135: 0 | D135: 0 | E135: 0.07 | F135: 0
B136: Componente 3: Adecuada oferta infraestructura y equipamiento para el fomento de lectura. | C136: =+C137+C144+C151+C158+C165+C172+C179+C186+C193 -> 1081100 | F136: =+F137+F144+F151+F158+F165+F172+F179+F186+F193 -> 818825.14
B137: Construcción de Sala de Lectura | C137: =+'Costos de Inversión'!O31 -> 455200 | F137: =SUM(F138:F143) -> 344768.48
B138: Bienes Transables | C138: =+$C$137*D138 -> 9104 | D138: 0.02 | E138: 1.08 | F138: =+($C$137*D138)*E138 -> 9832.32
B139: Bienes no transables | C139: =+$C$137*D139 -> 273120 | D139: 0.6 | E139: 0.847 | F139: =+($C$137*D139)*E139 -> 231332.64
B140: Mano de obra calificada | C140: 45520 | D140: 0.1 | E140: 0.8 | F140: 36416
B141: Mano de obra no calificada | C141: 81936 | D141: 0.18 | E141: 0.62 | F141: 50800.32
B142: Mano de obra semicalificada | C142: 22760 | D142: 0.05 | E142: 0.65 | F142: 14794
B143: Combustibles (Diesel) | C143: 22760 | D143: 0.05 | E143: 0.07 | F143: 1593.2
B144: Construcción de Ludoteca | C144: =+'Costos de Inversión'!O32 -> 284500 | F144: =SUM(F145:F150) -> 215480.3
B145: Bienes Transables | C145: =+$C$144*D145 -> 5690 | D145: 0.02 | E145: 1.08 | F145: =+($C$144*D145)*E145 -> 6145.2
B146: Bienes no transables | C146: =+$C$144*D146 -> 170700 | D146: 0.6 | E146: 0.847 | F146: =+($C$144*D146)*E146 -> 144582.9
B147: Mano de obra calificada | C147: 28450 | D147: 0.1 | E147: 0.8 | F147: 22760
B148: Mano de obra no calificada | C148: 51210 | D148: 0.18 | E148: 0.62 | F148: 31750.2
B149: Mano de obra semicalificada | C149: 14225 | D149: 0.05 | E149: 0.65 | F149: 9246.25
B150: Combustibles (Diesel) | C150: 14225 | D150: 0.05 | E150: 0.07 | F150: 995.75
B151: Construcción de Sala Audivisual | C151: =+'Costos de Inversión'!O33 -> 113800 | F151: =SUM(F152:F157) -> 86192.12
B152: Bienes Transables | C152: =+$C$151*D152 -> 2276 | D152: 0.02 | E152: 1.08 | F152: =+($C$151*D152)*E152 -> 2458.08
B153: Bienes no transables | C153: =+$C$151*D153 -> 68280 | D153: 0.6 | E153: 0.847 | F153: =+($C$151*D153)*E153 -> 57833.16
B154: Mano de obra calificada | C154: 11380 | D154: 0.1 | E154: 0.8 | F154: 9104
B155: Mano de obra no calificada | C155: 20484 | D155: 0.18 | E155: 0.62 | F155: 12700.08
B156: Mano de obra semicalificada | C156: 5690 | D156: 0.05 | E156: 0.65 | F156: 3698.5
B157: Combustibles (Diesel) | C157: 5690 | D157: 0.05 | E157: 0.07 | F157: 398.3
B158: Construcción de Oficina de bibliotecólogo | C158: =+'Costos de Inversión'!O34 -> 56900 | F158: =SUM(F159:F164) -> 43096.06
B159: Bienes Transables | C159: =+$C$158*D159 -> 1138 | D159: 0.02 | E159: 1.08 | F159: =+($C$158*D159)*E159 -> 1229.04
B160: Bienes no transables | C160: =+$C$158*D160 -> 34140 | D160: 0.6 | E160: 0.847 | F160: =+($C$158*D160)*E160 -> 28916.58
B161: Mano de obra calificada | C161: 5690 | D161: 0.1 | E161: 0.8 | F161: 4552
B162: Mano de obra no calificada | C162: 10242 | D162: 0.18 | E162: 0.62 | F162: 6350.04
B163: Mano de obra semicalificada | C163: 2845 | D163: 0.05 | E163: 0.65 | F163: 1849.25
B164: Combustibles (Diesel) | C164: 2845 | D164: 0.05 | E164: 0.07 | F164: 199.15
B165: Construcción de Depósito | C165: =+'Costos de Inversión'!O35 -> 42675 | F165: =SUM(F166:F171) -> 32322.045
B166: Bienes Transables | C166: =+$C$165*D166 -> 853.5 | D166: 0.02 | E166: 1.08 | F166: =+($C$165*D166)*E166 -> 921.78
B167: Bienes no transables | C167: =+$C$165*D167 -> 25605 | D167: 0.6 | E167: 0.847 | F167: =+($C$165*D167)*E167 -> 21687.435
B168: Mano de obra calificada | C168: 4267.5 | D168: 0.1 | E168: 0.8 | F168: 3414
B169: Mano de obra no calificada | C169: 7681.5 | D169: 0.18 | E169: 0.62 | F169: 4762.53
B170: Mano de obra semicalificada | C170: 2133.75 | D170: 0.05 | E170: 0.65 | F170: 1386.9375
B171: Combustibles (Diesel) | C171: 2133.75 | D171: 0.05 | E171: 0.07 | F171: 149.3625
B172: Construcción de Recepción | C172: =+'Costos de Inversión'!O36 -> 56900 | F172: =SUM(F173:F178) -> 43096.06
B173: Bienes Transables | C173: =+$C$172*D173 -> 1138 | D173: 0.02 | E173: 1.08 | F173: =+($C$172*D173)*E173 -> 1229.04
B174: Bienes no transables | C174: =+$C$172*D174 -> 34140 | D174: 0.6 | E174: 0.847 | F174: =+($C$172*D174)*E174 -> 28916.58
B175: Mano de obra calificada | C175: 5690 | D175: 0.1 | E175: 0.8 | F175: 4552
B176: Mano de obra no calificada | C176: 10242 | D176: 0.18 | E176: 0.62 | F176: 6350.04
B177: Mano de obra semicalificada | C177: 2845 | D177: 0.05 | E177: 0.65 | F177: 1849.25
B178: Combustibles (Diesel) | C178: 2845 | D178: 0.05 | E178: 0.07 | F178: 199.15
B179: Construcción de Servicios Higiénico | C179: =+'Costos de Inversión'!O37 -> 71125 | F179: =SUM(F180:F185) -> 53870.075
B180: Bienes Transables | C180: =+$C$179*D180 -> 1422.5 | D180: 0.02 | E180: 1.08 | F180: =+($C$179*D180)*E180 -> 1536.3
B181: Bienes no transables | C181: =+$C$179*D181 -> 42675 | D181: 0.6 | E181: 0.847 | F181: =+($C$179*D181)*E181 -> 36145.725
B182: Mano de obra calificada | C182: 7112.5 | D182: 0.1 | E182: 0.8 | F182: 5690
B183: Mano de obra no calificada | C183: 12802.5 | D183: 0.18 | E183: 0.62 | F183: 7937.55
B184: Mano de obra semicalificada | C184: 3556.25 | D184: 0.05 | E184: 0.65 | F184: 2311.5625
B185: Combustibles (Diesel) | C185: 3556.25 | D185: 0.05 | E185: 0.07 | F185: 248.9375
B186: Adquisición de Equipo para la Biblioteca | C186: =+'Costos de Inversión'!O38 -> 0 | F186: =SUM(F187:F192) -> 0
B187: Bienes Transables | C187: =+$C$186*D187 -> 0 | D187: 0 | E187: 1.08 | F187: =+($C$186*D187)*E187 -> 0
B188: Bienes no transables | C188: =+$C$186*D188 -> 0 | D188: 0.9 | E188: 0.847 | F188: =+($C$186*D188)*E188 -> 0
B189: Mano de obra calificada | C189: 0 | D189: 0.05 | E189: 0.8 | F189: 0
B190: Mano de obra no calificada | C190: 0 | D190: 0 | E190: 0.62 | F190: 0
B191: Mano de obra semicalificada | C191: 0 | D191: 0.05 | E191: 0.65 | F191: 0
B192: Combustibles (Diesel) | C192: 0 | D192: 0 | E192: 0.07 | F192: 0
B193: Adquisición de Mobiliario para la Biblioteca | C193: =+'Costos de Inversión'!O39 -> 0 | F193: =SUM(F194:F199) -> 0
B194: Bienes Transables | C194: =+$C$193*D194 -> 0 | D194: 0 | E194: 1.08 | F194: =+($C$193*D194)*E194 -> 0
B195: Bienes no transables | C195: =+$C$193*D195 -> 0 | D195: 0.8 | E195: 0.847 | F195: =+($C$193*D195)*E195 -> 0
B196: Mano de obra calificada | C196: 0 | D196: 0.15 | E196: 0.8 | F196: 0
B197: Mano de obra no calificada | C197: 0 | D197: 0 | E197: 0.62 | F197: 0
B198: Mano de obra semicalificada | C198: 0 | D198: 0.05 | E198: 0.65 | F198: 0
B199: Combustibles (Diesel) | C199: 0 | D199: 0 | E199: 0.07 | F199: 0
B200: Componente 4: Adecuadas salas de exhibición para promocionar la identidad y valores | C200: =+C201+C208+C215+C222+C229+C236+C243+C250+C257+C264 -> 1646650 | F200: =+F201+F208+F215+F222+F229+F236+F243+F250+F257+F264 -> 1247172.71
B201: Construcción de Sala de exposición permanente | C201: =+'Costos de Inversión'!O42 -> 256050 | F201: =SUM(F202:F207) -> 193932.27
B202: Bienes Transables | C202: =+$C$201*D202 -> 5121 | D202: 0.02 | E202: 1.08 | F202: =+($C$201*D202)*E202 -> 5530.68
B203: Bienes no transables | C203: =+$C$201*D203 -> 153630 | D203: 0.6 | E203: 0.847 | F203: =+($C$201*D203)*E203 -> 130124.61
B204: Mano de obra calificada | C204: 25605 | D204: 0.1 | E204: 0.8 | F204: 20484
... 82 more rows

Sheet Plan Implementación
D2: PLAN DE IMPLEMENTACIÓN
B4: Actividades del Plan de Implementación | F4: Año 1 | R4: Año 2
F5: Mes 1 | G5: Mes 2 | H5: Mes 3 | I5: Mes 4 | J5: Mes 5 | K5: Mes 6 | L5: Mes 7 | M5: Mes 8 | N5: Mes 9 | O5: Mes 10 | P5: Mes 11 | Q5: Mes 12 | R5: Mes 1 | S5: Mes 2 | T5: Mes 3 | U5: Mes 4 | V5: Mes 5 | W5: Mes 6 | X5: Mes 7 | Y5: Mes 8 | Z5: Mes 9 | AA5: Mes 10 | AB5: Mes 11 | AC5: Mes 12
B7: A) Ficha Técnica Estándar | F7: x | G7: x | H7: x | I7: x
B8: Elaboración de TDR | F8: x
B9: Expediente de Contratación | F9: x
B10: Procesos de selección | F10: x
B11: Adjudicación | F11: x
B12: Firma de Contrato | F12: x
B13: Elaboración de la Ficha Técnica Estándar | G13: x | H13: x
B14: Declaración de viabilidad de la Ficha Técnica Estándar | I14: x
B16: B) Expediente técnico | J16: x | K16: x | L16: x | M16: x | N16: x | O16: x
B17: Elaboración de TDR | J17: x
B18: Expediente de Contratación | J18: x | K18: x
B19: Procesos de selección | J19: x | K19: x
B20: Adjudicación | K20: x
B21: Firma de Contrato | K21: x
B22: Desarrollo del estudio | L22: x | M22: x | N22: x
B23: Aprobación de ET | O23: x
B25: C) Ejecución de Obra y Supervisión | P25: x | Q25: x | R25: x | S25: x | T25: x | U25: x | V25: x | W25: x | X25: x | Y25: x | Z25: x | AA25: x
B26: Elaboración de TDR | P26: x
B27: Expediente de Contratación | P27: x
B28: Procesos de selección | P28: x | Q28: x
B29: Adjudicación | R29: x
B30: Firma de Contrato | R30: x
B31: Desarrollo de la Obra | S31: x | T31: x | U31: x | V31: x | W31: x | X31: x | Y31: x | Z31: x
B32: Liquidación | AA32: x
B33: Entrega de Obra | AB33: x

Sheet INDICADORES DE BRECHA (hidden)
B2: Departamento | C2: Creación | D2: Nombre del Indicador | F2: Unidad de Medida | H2: Servicio | I2: Brecha | J2: Función | K2: División Funcional | L2: Grupo Funcional | M2: Tipología | P2: Problema Central | Q2: CAUSAS DIRECTAS | R2: Indicador | S2: UM | T2: Valor | U2: Fuente de Información | W2: CAUSAS INDIRECTAS | X2: Indicador | Y2: UM | Z2: Valor | AA2: Fuente de Información | AC2: Alternativas de solucion | AE2: MEDIOS FUNDAMENTALES | AK2: TIPOS DE USOS DE SUELO
B3: Provincia | C3: Mejoramiento | D3: Porcentaje de la población sin acceso al servicio de interpretación cultural del Patrimonio Cultural de la Nación a través de Instituciones Museales (% PSICIM). | F3: Usuario/año | H3: Servicio de Interpretación cultural | I3: Cobertura | J3: Cultura y Deporte | K3: Cultura | L3: Patrimonio Histórico y Cultural | M3: Instituciones Museales Públicas | O3: Insuficiente dotación de espacios públicos culturales. | P3: Población del distrito de XXXX sin acceso a espacios públicos con servicios culturales para su participación en las industrias culturales y las artes. | Q3: Insuficiente dotación de espacios públicos culturales | W3: Insuficiente oferta de espacios públicos culturales con equipamiento para el intercambio y encuentro de la ciudadanía. | AC3: Área Ecológica | AE3: Adecuada oferta de espacios públicos culturales con equipamiento para el intercambio y encuentro de la ciudadanía. | AK3: Zona de Recreación Pública
B4: Disrito | C4: Recuperación | D4: Porcentaje de bibliotecas públicas que no prestan adecuados servicios bibliotecarios (% BPNI). | F4: Bibliotecas Públicas | H4: Servicios bibliotecarios | I4: Calidad | J4: Cultura y Deporte | K4: Cultura | L4: Patrimonio Histórico y Cultural | M4: Bibliotecas Públicas | O4: Insuficiente dotación de infraestructura y equipamiento de servicios culturales. | Q4: Insuficiente dotación de infraestructura y equipamiento de servicios culturales. | W4: Insuficiente oferta de infraestructura para el desarrollo de actividades culturales. | AC4: Explanada Cultural | AE4: Adecuada oferta de infraestructura para el desarrollo de actividades culturales. | AK4: Usos Especiales
C5: Creación | D5: Porcentaje de distritos con más de 20,000 habitantes que no cuentan con infraestructura cultural pública para la participación de la población en las industrias culturales y las artes (% Distritos sin IPASC). | F5: Usuario/año | H5: Servicios culturales para la participación de la población en las industrias culturales y las artes | I5: cobertura | J5: Cultura y Deporte | K5: Cultura | L5: Promoción y desarrollo cultural | M5: Infraestructura Cultural Pública para la participación de la población en las industrias culturales y las artes | O5: Ineficiente gestión de servicios culturales para la promoción de identidad y valores. | W5: Insuficiente oferta de infraestructura y equipamiento para el fomento de la lectura. | AC5: Centro de Recursos para la Ciudadanía (CREC) | AE5: Adecuada oferta infraestructura y equipamiento para el fomento de lectura. | AK5: Otros compatibles con el proyecto
W6: Insuficientes salas de exhibición para promocionar la identidad y valores. | AC6: Centro Cultural | AE6: Adecuadas salas de exhibición para promocionar la identidad y valores
Q7: Ineficiente gestión de servicios culturales para la promoción de identidad y valores. | W7: Limitado capacidad de gestión de servicios culturales. | AC7: Biblioteca Comunitaria | AE7: Adecuada capacidad de gestión de servicios culturales
A8: SECTOR CULTURA | W8: Limitadas acciones de sensibilización para la promoción de identidad y valores con participación de la población. | AC8: Gestión de servicios culturales | AE8: Adecuadas acciones de sensibilización para la promoción de identidad y valores con participación de la población.
A9: REPORTE DE VALORES DE INDICADORES DE BRECHAS | AC9: Programa de sensibilización
A11: Nombre del Indicador | D11: Porcentaje de la población sin acceso al servicio de interpretación cultural del Patrimonio Cultural de la Nación a través de Instituciones Museales (% PSICIM).
A12: Unidad de Medida (Variables) | D12: Instituciones Museales Públicas (IMP).
A13: Variable 1 (V1) | D13: TPN: Total Población Nacional
A14: Variable 2 (V2) | D14: PCICIM: Población con acceso al servicio de interpretación cultural a través de IMP
A16: Fórmula | D16: Nota: La población con acceso al servicio de interpretación cultural a través de IM es igual a la población que potencialmente puede acceder al servicio, por lo que esta se calcula como el producto de la cantidad de IM existentes por la media iberoamericana de habitantes por museo (62,999 habitantes por museo).
A18: Instrucciones:
A19: a) En caso el Sector determine valores a nivel de distrito, debe incorporar las filas correspondientes.
A20: b) Si la fórmula del indicador de brechas tiene más de dos variables, incorporar las filas correspondientes.
A21: c) Si el Sector no cuenta con valores del indicador a nivel de región, provincia o distrito, en el casillero correspondiente consignar: S/I
A22: d) Si algún indicador no aplica a nivel de región, provincia o distrito, en el casillero correspondiente consignar: N/A
A24: Nivel de Desagregación del Indicador de Brecha | E24: Variables | F24: Valores de los Indicadores de Brechas
F25: Línea Base (Año 2017) | G25: Año 2020 | H25: Año 2021 | I25: Año 2022
A26: Nacional | B26: Región | C26: Provincia | D26: Distrito
A27: PERÚ | E27: Indicador | F27: =+((F28-F29)/F28)*100 -> 15.30629894 | G27: =+((G28-G29)/G28)*100 -> 15.16121263 | H27: =+((H28-H29)/H28)*100 -> 15.12225096 | I27: =+((I28-I29)/I28)*100 -> 15.08788507
E28: V1 | F28: 29381884 | G28: 29999952.6 | H28: 30208851.31 | I28: 30419204.63
E29: V2 | F29: 24884605 | G29: 25451596 | H29: 25640593 | I29: 25829590
B30: AMAZONAS | E30: Indicador | F30: S/I | G30: S/I | H30: S/I | I30: S/I
E31: V1 | F31: S/I | G31: S/I | H31: S/I | I31: S/I
E32: V2 | F32: S/I | G32: S/I | H32: S/I | I32: S/I
B33: ANCASH | E33: Indicador | F33: S/I | G33: S/I | H33: S/I | I33: S/I
E34: V1 | F34: S/I | G34: S/I | H34: S/I | I34: S/I
E35: V2 | F35: S/I | G35: S/I | H35: S/I | I35: S/I
B36: APURÍMAC | E36: Indicador | F36: S/I | G36: S/I | H36: S/I | I36: S/I
E37: V1 | F37: S/I | G37: S/I | H37: S/I | I37: S/I
E38: V2 | F38: S/I | G38: S/I | H38: S/I | I38: S/I
B39: AREQUIPA | E39: Indicador | F39: S/I | G39: S/I | H39: S/I | I39: S/I
E40: V1 | F40: S/I | G40: S/I | H40: S/I | I40: S/I
E41: V2 | F41: S/I | G41: S/I | H41: S/I | I41: S/I
B42: AYACUCHO | E42: Indicador | F42: S/I | G42: S/I | H42: S/I | I42: S/I
E43: V1 | F43: S/I | G43: S/I | H43: S/I | I43: S/I
E44: V2 | F44: S/I | G44: S/I | H44: S/I | I44: S/I
B45: CAJAMARCA | E45: Indicador | F45: S/I | G45: S/I | H45: S/I | I45: S/I
E46: V1 | F46: S/I | G46: S/I | H46: S/I | I46: S/I
E47: V2 | F47: S/I | G47: S/I | H47: S/I | I47: S/I
B48: CALLAO | E48: Indicador | F48: S/I | G48: S/I | H48: S/I | I48: S/I
E49: V1 | F49: S/I | G49: S/I | H49: S/I | I49: S/I
E50: V2 | F50: S/I | G50: S/I | H50: S/I | I50: S/I
B51: CUSCO | E51: Indicador | F51: S/I | G51: S/I | H51: S/I | I51: S/I
E52: V1 | F52: S/I | G52: S/I | H52: S/I | I52: S/I
E53: V2 | F53: S/I | G53: S/I | H53: S/I | I53: S/I
B54: HUANCAVELICA | E54: Indicador | F54: S/I | G54: S/I | H54: S/I | I54: S/I
E55: V1 | F55: S/I | G55: S/I | H55: S/I | I55: S/I
E56: V2 | F56: S/I | G56: S/I | H56: S/I | I56: S/I
B57: HUANUCO | E57: Indicador | F57: S/I | G57: S/I | H57: S/I | I57: S/I
E58: V1 | F58: S/I | G58: S/I | H58: S/I | I58: S/I
E59: V2 | F59: S/I | G59: S/I | H59: S/I | I59: S/I
B60: ICA | E60: Indicador | F60: S/I | G60: S/I | H60: S/I | I60: S/I
E61: V1 | F61: S/I | G61: S/I | H61: S/I | I61: S/I
E62: V2 | F62: S/I | G62: S/I | H62: S/I | I62: S/I
B63: JUNÍN | E63: Indicador | F63: S/I | G63: S/I | H63: S/I | I63: S/I
E64: V1 | F64: S/I | G64: S/I | H64: S/I | I64: S/I
E65: V2 | F65: S/I | G65: S/I | H65: S/I | I65: S/I
B66: LA LIBERTAD | E66: Indicador | F66: S/I | G66: S/I | H66: S/I | I66: S/I
E67: V1 | F67: S/I | G67: S/I | H67: S/I | I67: S/I
E68: V2 | F68: S/I | G68: S/I | H68: S/I | I68: S/I
B69: LAMBAYEQUE | E69: Indicador | F69: S/I | G69: S/I | H69: S/I | I69: S/I
E70: V1 | F70: S/I | G70: S/I | H70: S/I | I70: S/I
E71: V2 | F71: S/I | G71: S/I | H71: S/I | I71: S/I
B72: LIMA | E72: Indicador | F72: S/I | G72: S/I | H72: S/I | I72: S/I
E73: V1 | F73: S/I | G73: S/I | H73: S/I | I73: S/I
E74: V2 | F74: S/I | G74: S/I | H74: S/I | I74: S/I
B75: LORETO | E75: Indicador | F75: S/I | G75: S/I | H75: S/I | I75: S/I
E76: V1 | F76: S/I | G76: S/I | H76: S/I | I76: S/I
E77: V2 | F77: S/I | G77: S/I | H77: S/I | I77: S/I
B78: MADRE DE DIOS | E78: Indicador | F78: S/I | G78: S/I | H78: S/I | I78: S/I
E79: V1 | F79: S/I | G79: S/I | H79: S/I | I79: S/I
E80: V2 | F80: S/I | G80: S/I | H80: S/I | I80: S/I
B81: MOQUEGUA | E81: Indicador | F81: S/I | G81: S/I | H81: S/I | I81: S/I
E82: V1 | F82: S/I | G82: S/I | H82: S/I | I82: S/I
E83: V2 | F83: S/I | G83: S/I | H83: S/I | I83: S/I
B84: PASCO | E84: Indicador | F84: S/I | G84: S/I | H84: S/I | I84: S/I
E85: V1 | F85: S/I | G85: S/I | H85: S/I | I85: S/I
E86: V2 | F86: S/I | G86: S/I | H86: S/I | I86: S/I
B87: PIURA | E87: Indicador | F87: S/I | G87: S/I | H87: S/I | I87: S/I
E88: V1 | F88: S/I | G88: S/I | H88: S/I | I88: S/I
E89: V2 | F89: S/I | G89: S/I | H89: S/I | I89: S/I
B90: PUNO | E90: Indicador | F90: S/I | G90: S/I | H90: S/I | I90: S/I
E91: V1 | F91: S/I | G91: S/I | H91: S/I | I91: S/I
E92: V2 | F92: S/I | G92: S/I | H92: S/I | I92: S/I
B93: SAN MARTÍN | E93: Indicador | F93: S/I | G93: S/I | H93: S/I | I93: S/I
E94: V1 | F94: S/I | G94: S/I | H94: S/I | I94: S/I
E95: V2 | F95: S/I | G95: S/I | H95: S/I | I95: S/I
B96: TACNA | E96: Indicador | F96: S/I | G96: S/I | H96: S/I | I96: S/I
E97: V1 | F97: S/I | G97: S/I | H97: S/I | I97: S/I
E98: V2 | F98: S/I | G98: S/I | H98: S/I | I98: S/I
B99: TUMBES | E99: Indicador | F99: S/I | G99: S/I | H99: S/I | I99: S/I
E100: V1 | F100: S/I | G100: S/I | H100: S/I | I100: S/I
E101: V2 | F101: S/I | G101: S/I | H101: S/I | I101: S/I
B102: UCAYALI | E102: Indicador | F102: S/I | G102: S/I | H102: S/I | I102: S/I
E103: V1 | F103: S/I | G103: S/I | H103: S/I | I103: S/I
E104: V2 | F104: S/I | G104: S/I | H104: S/I | I104: S/I
A105: Nota: No se cuenta con información a nivel regional, provincial ni distrital.
A111: SECTOR CULTURA
A112: REPORTE DE VALORES DE INDICADORES DE BRECHAS
A114: Nombre del Indicador | D114: Porcentaje de bibliotecas públicas que no prestan adecuados servicios bibliotecarios (% BPNI).
A115: Unidad de Medida (Variables) | D115: Bibliotecas Públicas.
A116: Variable 1 (V1) | D116: TBP: Total de bibliotecas públicas
A117: Variable 2 (V2) | D117: BPI: Bibliotecas públicas intervenidas
A119: Fórmula
A121: Instrucciones:
A122: a) En caso el Sector determine valores a nivel de distrito, debe incorporar las filas correspondientes.
A123: b) Si la fórmula del indicador de brechas tiene más de dos variables, incorporar las filas correspondientes.
A124: c) Si el Sector no cuenta con valores del indicador a nivel de región, provincia o distrito, en el casillero correspondiente consignar: S/I
A125: d) Si algún indicador no aplica a nivel de región, provincia o distrito, en el casillero correspondiente consignar: N/A
A127: Nivel de Desagregación del Indicador de Brecha | E127: Variables | F127: Valores de los Indicadores de Brechas
F128: Línea Base (Año 2018) | G128: Año 2020 | H128: Año 2021 | I128: Año 2022
A129: Nacional | B129: Región | C129: Provincia | D129: Distrito
A130: PERÚ | E130: Indicador | F130: =+((F131-F132)/F131)*100 -> 90.58614565 | G130: =+((G131-G132)/G131)*100 -> 89.87566607 | H130: =+((H131-H132)/H131)*100 -> 89.52042629 | I130: =+((I131-I132)/I131)*100 -> 89.1651865
E131: V1 | F131: 563 | G131: 563 | H131: 563 | I131: 563
E132: V2 | F132: 53 | G132: 57 | H132: 59 | I132: 61
B133: AMAZONAS | E133: Indicador | F133: S/I | G133: S/I | H133: S/I | I133: S/I
E134: V1 | F134: S/I | G134: S/I | H134: S/I | I134: S/I
E135: V2 | F135: S/I | G135: S/I | H135: S/I | I135: S/I
B136: ANCASH | E136: Indicador | F136: S/I | G136: S/I | H136: S/I | I136: S/I
E137: V1 | F137: S/I | G137: S/I | H137: S/I | I137: S/I
E138: V2 | F138: S/I | G138: S/I | H138: S/I | I138: S/I
B139: APURÍMAC | E139: Indicador | F139: S/I | G139: S/I | H139: S/I | I139: S/I
E140: V1 | F140: S/I | G140: S/I | H140: S/I | I140: S/I
E141: V2 | F141: S/I | G141: S/I | H141: S/I | I141: S/I
B142: AREQUIPA | E142: Indicador | F142: S/I | G142: S/I | H142: S/I | I142: S/I
E143: V1 | F143: S/I | G143: S/I | H143: S/I | I143: S/I
E144: V2 | F144: S/I | G144: S/I | H144: S/I | I144: S/I
B145: AYACUCHO | E145: Indicador | F145: S/I | G145: S/I | H145: S/I | I145: S/I
E146: V1 | F146: S/I | G146: S/I | H146: S/I | I146: S/I
E147: V2 | F147: S/I | G147: S/I | H147: S/I | I147: S/I
B148: CAJAMARCA | E148: Indicador | F148: S/I | G148: S/I | H148: S/I | I148: S/I
E149: V1 | F149: S/I | G149: S/I | H149: S/I | I149: S/I
E150: V2 | F150: S/I | G150: S/I | H150: S/I | I150: S/I
B151: CALLAO | E151: Indicador | F151: S/I | G151: S/I | H151: S/I | I151: S/I
E152: V1 | F152: S/I | G152: S/I | H152: S/I | I152: S/I
E153: V2 | F153: S/I | G153: S/I | H153: S/I | I153: S/I
B154: CUSCO | E154: Indicador | F154: S/I | G154: S/I | H154: S/I | I154: S/I
E155: V1 | F155: S/I | G155: S/I | H155: S/I | I155: S/I
E156: V2 | F156: S/I | G156: S/I | H156: S/I | I156: S/I
B157: HUANCAVELICA | E157: Indicador | F157: S/I | G157: S/I | H157: S/I | I157: S/I
E158: V1 | F158: S/I | G158: S/I | H158: S/I | I158: S/I
E159: V2 | F159: S/I | G159: S/I | H159: S/I | I159: S/I
B160: HUANUCO | E160: Indicador | F160: S/I | G160: S/I | H160: S/I | I160: S/I
E161: V1 | F161: S/I | G161: S/I | H161: S/I | I161: S/I
E162: V2 | F162: S/I | G162: S/I | H162: S/I | I162: S/I
B163: ICA | E163: Indicador | F163: S/I | G163: S/I | H163: S/I | I163: S/I
E164: V1 | F164: S/I | G164: S/I | H164: S/I | I164: S/I
E165: V2 | F165: S/I | G165: S/I | H165: S/I | I165: S/I
B166: JUNÍN | E166: Indicador | F166: S/I | G166: S/I | H166: S/I | I166: S/I
E167: V1 | F167: S/I | G167: S/I | H167: S/I | I167: S/I
E168: V2 | F168: S/I | G168: S/I | H168: S/I | I168: S/I
B169: LA LIBERTAD | E169: Indicador | F169: S/I | G169: S/I | H169: S/I | I169: S/I
E170: V1 | F170: S/I | G170: S/I | H170: S/I | I170: S/I
E171: V2 | F171: S/I | G171: S/I | H171: S/I | I171: S/I
B172: LAMBAYEQUE | E172: Indicador | F172: S/I | G172: S/I | H172: S/I | I172: S/I
E173: V1 | F173: S/I | G173: S/I | H173: S/I | I173: S/I
E174: V2 | F174: S/I | G174: S/I | H174: S/I | I174: S/I
B175: LIMA | E175: Indicador | F175: S/I | G175: S/I | H175: S/I | I175: S/I
E176: V1 | F176: S/I | G176: S/I | H176: S/I | I176: S/I
E177: V2 | F177: S/I | G177: S/I | H177: S/I | I177: S/I
B178: LORETO | E178: Indicador | F178: S/I | G178: S/I | H178: S/I | I178: S/I
E179: V1 | F179: S/I | G179: S/I | H179: S/I | I179: S/I
E180: V2 | F180: S/I | G180: S/I | H180: S/I | I180: S/I
B181: MADRE DE DIOS | E181: Indicador | F181: S/I | G181: S/I | H181: S/I | I181: S/I
E182: V1 | F182: S/I | G182: S/I | H182: S/I | I182: S/I
E183: V2 | F183: S/I | G183: S/I | H183: S/I | I183: S/I
B184: MOQUEGUA | E184: Indicador | F184: S/I | G184: S/I | H184: S/I | I184: S/I
E185: V1 | F185: S/I | G185: S/I | H185: S/I | I185: S/I
E186: V2 | F186: S/I | G186: S/I | H186: S/I | I186: S/I
B187: PASCO | E187: Indicador | F187: S/I | G187: S/I | H187: S/I | I187: S/I
E188: V1 | F188: S/I | G188: S/I | H188: S/I | I188: S/I
E189: V2 | F189: S/I | G189: S/I | H189: S/I | I189: S/I
B190: PIURA | E190: Indicador | F190: S/I | G190: S/I | H190: S/I | I190: S/I
E191: V1 | F191: S/I | G191: S/I | H191: S/I | I191: S/I
E192: V2 | F192: S/I | G192: S/I | H192: S/I | I192: S/I
B193: PUNO | E193: Indicador | F193: S/I | G193: S/I | H193: S/I | I193: S/I
E194: V1 | F194: S/I | G194: S/I | H194: S/I | I194: S/I
E195: V2 | F195: S/I | G195: S/I | H195: S/I | I195: S/I
B196: SAN MARTÍN | E196: Indicador | F196: S/I | G196: S/I | H196: S/I | I196: S/I
E197: V1 | F197: S/I | G197: S/I | H197: S/I | I197: S/I
E198: V2 | F198: S/I | G198: S/I | H198: S/I | I198: S/I
B199: TACNA | E199: Indicador | F199: S/I | G199: S/I | H199: S/I | I199: S/I
E200: V1 | F200: S/I | G200: S/I | H200: S/I | I200: S/I
E201: V2 | F201: S/I | G201: S/I | H201: S/I | I201: S/I
B202: TUMBES | E202: Indicador | F202: S/I | G202: S/I | H202: S/I | I202: S/I
E203: V1 | F203: S/I | G203: S/I | H203: S/I | I203: S/I
E204: V2 | F204: S/I | G204: S/I | H204: S/I | I204: S/I
B205: UCAYALI | E205: Indicador | F205: S/I | G205: S/I | H205: S/I | I205: S/I
E206: V1 | F206: S/I | G206: S/I | H206: S/I | I206: S/I
E207: V2 | F207: S/I | G207: S/I | H207: S/I | I207: S/I
A208: Nota: No se cuenta con información a nivel regional, provincial ni distrital.
A214: SECTOR CULTURA
A215: REPORTE DE VALORES DE INDICADORES DE BRECHAS
A217: Nombre del Indicador | D217: Porcentaje de distritos con más de 20,000 habitantes que no cuentan con infraestructura cultural pública para la participación de la población en las industrias culturales y las artes (% Distritos sin IPASC).
A218: Unidad de Medida (Variables) | D218: Usuario/año.
A219: Variable 1 (V1) | D219: Distritos: Número de distritos con más de 20,000 habitantes.
A220: Variable 2 (V2) | D220: Distritos con IPASC: Distritos con más de 20,000 habitantes que cuentan con al menos una infraestructura pública para servicios culturales.
... 88 more rows

Sheet OBJETIVOS (hidden)
B3: OBJETIVO CENTRAL | E3: Población con acceso a espacios públicos con servicios culturales para la promoción de la identidad y valores para la ciudadanía.
B5: N° | C5: MEDIOS FUNDAMENTALES | H5: ACTIVOS AGREGADOS | J5: ACCIONES | P5: TIPO DE FACTOR PRODUCTIVO
B6: 1 | C6: Adecuada oferta de espacios públicos culturales con equipamiento para el intercambio y encuentro de la ciudadanía. | H6: Área ecológica | J6: Construcción de Área verde | N6: Construcción de Área verde | P6: Infraestructura
J7: Construcción de Sendero | N7: Construcción de Sendero | P7: Mobiliario
J8: Adquisición de Baldosas podo táctiles | N8: Adquisición de Baldosas podo táctiles | P8: Equipo
J9: Construcción de Sardineles | N9: Construcción de Sardineles | P9: Intangible
J10: Construcción de Sistema de riego | N10: Construcción de Sistema de riego
J11: Adquisición de Bancas | N11: Adquisición de Bancas
J12: Adquisición de Juegos infantiles e inclusivos | N12: Adquisición de Juegos infantiles e inclusivos
J13: Adquisición de Luminarias / faroles | N13: Adquisición de Luminarias / faroles
H14: Explanada Cultural | J14: Construcción de Anfiteatro | N14: Construcción de Anfiteatro
J15: Construcción de Plataforma | N15: Construcción de Plataforma
J16: Construcción de Servicios higiénicos | N16: Construcción de Servicios higiénicos
B17: 2 | C17: Adecuada oferta de infraestructura para el desarrollo de actividades culturales. | H17: Centro Cultural | J17: Construcción de Auditórium | N17: Construcción de Auditórium
J18: Construcción de Sala de Usos Múltiples | N18: Construcción de Sala de Usos Múltiples
J19: Construcción de Recepción | N19: Construcción de Recepción
J20: Construcción de Talleres | N20: Construcción de Talleres
J21: Construcción de Servicios higiénicos | N21: Construcción de Servicios higiénicos
J22: Adquisición de equipo para centro cultural | N22: Adquisición de equipo para centro cultural
J23: Adquisición de mobiliario para centro cultural | N23: Adquisición de mobiliario para centro cultural
B24: 3 | C24: Adecuada oferta infraestructura y equipamiento para el fomento de lectura. | H24: Biblioteca Comunitaria | J24: Construcción de Sala de Lectura | N24: Construcción de Sala de Lectura
J25: Construcción de Ludoteca | N25: Construcción de Ludoteca
J26: Construcción de Sala Audiovisual | N26: Construcción de Sala Audiovisual
J27: Adquisición de Estantería de Libros | N27: Construcción de Oficina de bibliotecólogo
J28: Construcción de Oficina de bibliotecólogo | N28: Construcción de Depósito
J29: Construcción de Depósito | N29: Construcción de Recepción
J30: Construcción de Recepción | N30: Construcción de Servicios higiénicos
J31: Construcción de Servicios higiénicos | N31: Adquisición de equipo para Biblioteca
J32: Adquisición de equipo para Biblioteca | N32: Adquisición de mobiliario para Biblioteca
J33: Adquisición de mobiliario para Biblioteca | N33: Construcción de Sala de exposición permanente
B34: 4 | C34: Adecuadas salas de exhibición para promocionar la identidad y valores | H34: Centro de Recursos de la Ciudadania | J34: Construcción de Sala de exposición permanente | N34: Construcción de Sala de exposición temporal
J35: Construcción de Sala de exposición temporal | N35: Construcción de Laboratorio creativo
J36: Construcción de Laboratorio creativo | N36: Construcción de Huerto comunitario
J37: Construcción de Huerto comunitario | N37: Ambiente de preparación y expendio de alimentos
J38: Construcción de Cafetería | N38: Construcción de Depósito
J39: Construcción de Cocina | N39: Construcción de Área Administrativa
J40: Construcción de Depósito | N40: Construcción de Servicios higiénicos
J41: Construcción de Área Administrativa | N41: Adquisición de equipo para CREC
J42: Construcción de Servicios higiénicos | N42: Adquisición de mobiliario para CREC
J43: Adquisición de equipo para CREC | N43: Implementación de capacidad organizacional
J44: Adquisición de mobiliario para CREC | N44: Implementación de capacidad humana
B45: 5 | C45: Adecuada capacidad de gestión de servicios culturales | H45: Modelo de Gestión | J45: Implementación de capacidad organizacional
B46: 6 | C46: Adecuadas acciones de sensibilización para la promoción de identidad y valores con participación de la población. | H46: Programa de sensibilización a la ciudadanía | J46: Implementación de capacidad humana
B49: N° | C49: FINES DIRECTOS | H49: FIN ULTIMO
B50: 1 | C50: Incremento de la participación de la ciudadanía en actividades de interacción social y cultural | H50: Mejora de la identidad cultural y valores en la población
C51: Incremento de hábito de lectura y del valor cultural de la ciudadanía
